{"text_format":"3","workbook":"xlsx","n_sheets":11,"sheets":["CDS-A","CDS-B","CDS-C","CDS-D","CDS-E","CDS-F","CDS-G","CDS-H","CDS-I","CDS-J","CDS Definitions"],"not_rendered":{"external_links":1,"defined_names":1},"read":"whole","date_system":"1900"}

{"sheet":"CDS-A","index":0,"n_rows":82,"n_cols":4,"rows_kept":82,"merged":[[0,0,0,3],[1,2,1,3],[12,1,13,1],[16,1,16,3],[18,1,18,3],[19,1,19,3],[34,1,34,3],[35,1,35,3],[36,1,36,3],[37,1,37,3],[39,1,39,3],[53,3,55,3],[59,1,59,3],[62,1,62,3],[81,1,81,3]]}
["A.  General Information"]
[]
["A0","Respondent Information (Not for Publication)"]
[null,"Name:",null,"Adam Johnson"]
[null,"Title:",null,"Director of Institutional Research"]
[null,"Office:",null,"Office of Institutional Research & Assessment"]
[null,"Mailing Address:",null,"1600 Grand Avenue"]
[null,"City/State/Zip/Country:",null,"St. Paul, MN 55105 USA"]
[null,"Phone:",null,"651.696.6411"]
[null,"Fax:"]
[null,"E-mail Address:",null,"ajohns31@macalester.edu"]
[]
[null,"Are your responses to the CDS posted for reference on your institution's Web site?","x","Yes"]
[{"$nulls":3},"No"]
[]
[null,"If yes, please provide the URL of the corresponding Web page:"]
[null,"https://www.macalester.edu/institutional-research/institutionaldata/"]
[]
["A0A","We invite you to indicate if there are items on the CDS for which you cannot use the requested analytic convention, cannot provide data for the cohort requested, whose methodology is unclear, or about which you have questions or comments in general. This information will not be published but will help the publishers further refine CDS items."]
[]
[]
["A1","Address Information"]
[null,"Name of College/University:",null,"Macalester College"]
[null,"Mailing Address:",null,"1600 Grand Avenue"]
[null,"City/State/Zip/Country:",null,"Saint Paul, MN 55105 USA"]
[null,"Street Address (if different):"]
[null,"City/State/Zip/Country:"]
[null,"Main Phone Number:",null,6516966000]
[null,"WWW Home Page Address:",null,"www.macalester.edu"]
[null,"Admissions Phone Number:",null,"651-696-6357"]
[null,"Admissions Toll-Free Phone Number:",null,"1-800-231-7974"]
[null,"Admissions Office Mailing Address:",null,"1600 Grand Avenue"]
[null,"City/State/Zip/Country:",null,"Saint Paul, MN 55105 USA"]
[null,"Admissions E-mail Address:",null,"admissions@macalester.edu"]
[null,"If there is a separate URL for your school’s online application, please specify:"]
[null,"https://www.macalester.edu/admissions/apply/ "]
[null,"If you have a mailing address other than the above to which applications should be sent, please provide:"]
[]
[]
["A2","Source of institutional control (Check only one):"]
[]
[null,"Public"]
["x","Private (nonprofit)"]
[null,"Proprietary"]
[]
["A3","Classify your undergraduate institution:"]
[]
["x","Coeducational college"]
[null,"Men's college"]
[null,"Women's college"]
[]
["A4","Academic year calendar:"]
[]
["x","Semester"]
[null,"Quarter"]
[null,"Trimester"]
[null,"4-1-4"]
[null,"Continuous"]
[null,"Differs by program (describe):"]
[]
[]
[null,"Other (describe):"]
[]
["A5","Degrees offered by your institution:"]
[]
[null,"Certificate"]
[null,"Diploma"]
[null,"Associate"]
[null,"Transfer Associate"]
[null,"Terminal Associate"]
["x","Bachelor's"]
[null,"Postbachelor's certificate"]
[null,"Master's"]
[null,"Post-master's certificate"]
[null,"Doctoral degree research/scholarship"]
[null,"Doctoral degree – professional practice"]
[null,"Doctoral degree -- other"]
["A5","Doctoral degree -- other"]
["A6","Diversity, Equity, and Inclusion"]
[]
[null,"If you have a diversity, equity, and inclusion office or department, please provide the URL of the corresponding Web page:"]
[null,"https://www.macalester.edu/equity/ "]

{"sheet":"CDS-B","index":1,"n_rows":133,"n_cols":7,"rows_kept":133,"merged":[[0,0,0,7],[2,1,2,7],[3,1,3,7],[4,1,4,7],[5,1,5,7],[6,1,6,7],[7,1,7,7],[8,1,8,6],[49,1,49,7],[50,1,50,7],[51,1,51,7],[52,1,52,7],[53,1,53,7],[54,1,54,7],[55,1,55,7],[56,1,56,7],[57,1,57,7],[58,1,58,7],[59,1,59,5],[60,1,60,2],[61,1,61,2],[62,1,62,2],[63,1,63,2],[64,1,64,2],[65,1,65,2],[66,1,66,2],[67,1,67,2],[68,1,68,2],[69,1,69,2],[70,1,70,2],[84,1,84,7],[85,1,85,7],[86,1,88,27],[89,1,89,5],[90,1,90,6],[91,1,91,5],[92,1,93,1],[92,2,93,2],[92,3,93,3],[92,4,93,4],[92,5,93,5],[103,1,103,5],[104,1,105,1],[104,2,105,2],[104,3,105,3],[104,4,105,4],[104,5,105,5],[115,1,115,7],[116,1,116,4],[117,1,117,4],[118,1,118,4],[119,1,119,4],[120,1,120,4],[121,1,121,4],[122,1,122,4],[123,1,123,4],[124,1,124,4],[125,1,125,4],[126,1,126,4],[128,1,128,7],[129,1,129,7],[130,1,130,6],[131,1,131,5]]}
["B. ENROLLMENT AND PERSISTENCE"]
[]
["B1","Institutional Enrollment - Men and Women "]
[null,"Provide numbers of students for each of the following categories as of the institution's official fall reporting date or as of October 15, 2024."]
[null,"•     Note: Report students formerly designated as “first professional” in the graduate cells."]
[null,"•     For information on reporting study abroad students please see: https://nces.ed.gov/ipeds/pdf/Reporting_Study_Abroad_Students.pdf "]
[null,"•     If your institution collects and reports non-binary gender data, please use the \"Another Gender\" category."]
[null,"•     In cases where gender information is not provided, please distribute across the two-binary categories."]
[null,"•     Dual Enrollment: If your institution enrolls high school students in college courses for credit either within a dual enrollment program or outside of a dual enrollment program, you may report the unduplicated count as part of the full- or part-time “All other undergraduates” section. "]
[null,"Undergraduate Students: Full-Time","Men","Women","Another Gender","Unknown"]
[null,"Degree-seeking, first-time first-year students",240,{"v":289,"d":"289 "},{"v":31,"d":"31 "},{"v":0,"d":"0 "}]
[null,"Other first-year, degree-seeking ",{"v":5,"d":"5 "},{"v":10,"d":"10 "},{"v":4,"d":"4 "},{"v":0,"d":"0 "}]
[null,"All other degree-seeking",{"v":633,"d":"633 "},{"v":808,"d":"808 "},{"v":79,"d":"79 "},{"v":0,"d":"0 "}]
[null,"Total degree-seeking",{"$f":"SUM(C11:C13)","v":{"v":878,"d":"878 "}},{"v":1107,"d":"1,107 "},{"v":114,"d":"114 "},{"$f":"SUM(F11:F13)","v":{"v":0,"d":"0 "}}]
[null,"All other undergraduates enrolled in credit courses",{"v":1,"d":"1 "},{"v":6,"d":"6 "}]
[null,"Total undergraduate Full-Time Students",{"$f":"SUM(C14:C15)","v":{"v":879,"d":"879 "}},{"$f":"SUM(D14:D15)","v":{"v":1113,"d":"1,113 "}},{"v":114,"d":"114 "},{"$f":"SUM(F14:F15)","v":{"v":0,"d":"0 "}}]
[]
[null,"Undergraduate Students: Part-Time","Men","Women","Another Gender","Unknown"]
[null,"Degree-seeking, first-time first-year students",0,{"v":0,"d":"0 "},{"v":0,"d":"0 "},{"v":0,"d":"0 "}]
[null,"Other first-year, degree-seeking ",{"v":0,"d":"0 "},{"v":0,"d":"0 "},{"v":0,"d":"0 "},{"v":0,"d":"0 "}]
[null,"All other degree-seeking",{"v":13,"d":"13 "},{"v":11,"d":"11 "},{"v":8,"d":"8 "},{"v":0,"d":"0 "}]
[null,"Total degree-seeking",{"$f":"SUM(C19:C21)","v":{"v":13,"d":"13 "}},{"v":11,"d":"11 "},{"v":8,"d":"8 "},{"$f":"SUM(F19:F21)","v":{"v":0,"d":"0 "}}]
[null,"All other undergraduates enrolled in credit courses"]
[null,"Total undergraduate Part-Time Students",{"$f":"SUM(C22:C23)","v":{"v":13,"d":"13 "}},{"v":11,"d":"11 "},{"v":8,"d":"8 "},{"$f":"SUM(F22:F23)","v":{"v":0,"d":"0 "}}]
[]
[null,"Undergraduate Students: All","Men","Women","Another Gender","Unknown"]
[null,"Total undergraduate Students",892,{"v":1124,"d":"1,124 "},{"v":122,"d":"122 "},{"v":0,"d":"0 "}]
[]
[null,"Graduate Students: Full-Time"]
[null,"Degree-seeking, first-time"]
[null,"All other degree-seeking"]
[null,"All other graduates enrolled in credit courses"]
[null,"Total graduate Full-Time Students",{"$f":"SUM(C30:C32)","v":0},0,0,{"$f":"SUM(F30:F32)","v":0}]
[]
[null,"Graduate Students: Part-Time"]
[null,"Degree-seeking, first-time"]
[null,"All other degree-seeking"]
[null,"All other graduates enrolled in credit courses"]
[null,"Total graduate Part-Time Students",{"$f":"SUM(C36:C38)","v":0},0,0,{"$f":"SUM(F36:F38)","v":0}]
[]
[null,"Graduate Students: All","Men","Women","Another Gender","Unknown"]
[null,"Total Graduate Students"]
[]
[null,"All Students: Total","Men","Women","Another Gender","Unknown"]
[null,"Total all students",{"v":892,"d":"892 "},{"v":1124,"d":"1,124 "},{"v":122,"d":"122 "},{"$f":"SUM(F16, F33)","v":{"v":0,"d":"0 "}}]
[]
[null,"Total all undergraduates",{"$f":"SUM(C27:E27)","v":{"v":2138,"d":"2,138 "}}]
[null,"Total all graduate",{"$f":"SUM(C42:E42)","v":0}]
[null,"GRAND TOTAL ALL STUDENTS",{"$f":"SUM(C47:C48)","v":{"v":2138,"d":"2,138 "}}]
["B2","Enrollment by Racial/Ethnic Category. "]
[null,"Provide numbers of undergraduate students for each of the following categories as of the institution’s official fall reporting date or as of October 15, 2024. "]
[null,"•     Include international students only in the category \"Nonresidents.\" "]
[null,"•     Complete the “Total Undergraduates” column only if you cannot provide data for the first two columns."]
[null,"•     Report as your institution reports to IPEDS: persons who are Hispanic should be reported only on the \n      Hispanic line, not under any race, and persons who are non-Hispanic multi-racial should be reported only \n      under \"Two or more races.\""]
[null,"•     New guidance from IPEDS for reporting aggregate data:"]
[null,"Racial/ethnic designations are requested only for United States citizens, residents, and other eligible non-citizens.\nEligible non-citizens include all students who completed high school or a GED equivalency within the United States\n(including DACA and undocumented students) and who were not on an F-1 non-immigrant student visa at the time of \nhigh school graduation."]
[null,"More information about other eligible (for financial aid purposes) non-citizens is available at\nhttps://studentaid.gov/understandaid/eligibility/requirements/non-us-citizens."]
[null,"Nonresident - A person who is not a citizen or national of the United States and who is in this country on a student visa\nor temporary basis and does not have the right to remain indefinitely. Do not include DACA, undocumented, or other\neligible noncitizens in this category."]
[null,"NOTE - Nonresidents are to be reported separately, in the boxes provided, rather than included in any of the seven\nracial/ethnic categories or in race/ethnicity unknown."]
[null,"Dual Enrollment: If your institution enrolls high school students in college courses for credit either within a dual enrollment program or outside of a dual enrollment program, you may report the unduplicated count as part of the non-degree-seeking students included in the “Total Undergraduates (both degree & non-degree-seeking)” section."]
[{"$nulls":3},"Degree-Seeking\n First-Time\n First Year","Degree-Seeking\n Undergraduates (include first-time first-year)","Total\n Undergraduates (both degree & non-degree-seeking)"]
[null,"Nonresidents",null,{"v":117,"d":"117 "},{"v":314,"d":"314 "},{"v":321,"d":"321 "}]
[null,"Hispanic/Latino",null,{"v":48,"d":"48 "},{"v":232,"d":"232 "},{"v":232,"d":"232 "}]
[null,"Black or African American, non-Hispanic",null,{"v":34,"d":"34 "},{"v":133,"d":"133 "},{"v":133,"d":"133 "}]
[null,"White, non-Hispanic",null,{"v":254,"d":"254 "},{"v":1067,"d":"1,067 "},{"v":1067,"d":"1,067 "}]
[null,"American Indian or Alaska Native, non-Hispanic",null,{"v":1,"d":"1 "},{"v":2,"d":"2 "},{"v":2,"d":"2 "}]
[null,"Asian, non-Hispanic",null,{"v":46,"d":"46 "},{"v":169,"d":"169 "},{"v":169,"d":"169 "}]
[null,"Native Hawaiian or other Pacific Islander, non-Hispanic",null,{"v":2,"d":"2 "},{"v":6,"d":"6 "},{"v":6,"d":"6 "}]
[null,"Two or more races, non-Hispanic",null,{"v":46,"d":"46 "},{"v":188,"d":"188 "},{"v":188,"d":"188 "}]
[null,"Race and/or ethnicity unknown",null,{"v":12,"d":"12 "},{"v":20,"d":"20 "},{"v":20,"d":"20 "}]
[null,"TOTAL",null,{"v":560,"d":"560 "},{"v":2131,"d":"2,131 "},{"v":2138,"d":"2,138 "}]
[]
[null,"Persistence"]
["B3","Number of degrees awarded by your institution from July 1, 2023, to June 30, 2024."]
[null,"Certificate/diploma"]
[null,"Associate degrees"]
[null,"Bachelor's degrees",513]
[null,"Postbachelor's certificates"]
[null,"Master's degrees"]
[null,"Post-Master's certificates"]
[null,"Doctoral degrees – research/scholarship"]
[null,"Doctoral degrees – professional practice"]
[null,"Doctoral degrees – other"]
[null,"B4-B21: Graduation Rates"]
[null,"The items in this section correspond to data elements collected by the IPEDS Web-based Data Collection System’s Graduation Rate Survey (GRS)."]
[null,"•     For complete instructions and definitions of data elements, see the IPEDS GRS Forms and Instructions \n      for the 2024-2025 Survey. https://nces.ed.gov/ipeds/use-the-data/survey-components/9/graduation-rates "]
[null,"In the following section for bachelor’s or equivalent programs, please disaggregate the Fall 2017 and Fall 2018 cohorts (formerly CDS B4-B11) into four groups:\n•     Students who received a Federal Pell Grant*\n•     Recipients of a subsidized Stafford Loan who did not receive a Pell Grant\n•     Students who did not receive either a Pell Grant or a subsidized Stafford Loan\n•     Total (all students, regardless of Pell Grant or subsidized loan status)\n\n*Students who received both a Federal Pell Grant and a subsidized Stafford Loan should be reported in the \"Recipients of a Federal Pell Grant\" column.\n\nFor each graduation rate grid below, the numbers in the first three columns for Questions A-G should sum to the cohort total in the fourth column (formerly CDS B4-B11)."]
[]
[]
[null,"For Bachelor’s or Equivalent Programs"]
[null,"Please provide data for the Fall 2018 cohort if available. If Fall 2018 cohort data are not available, provide data for the Fall 2017 cohort."]
[null,"Fall 2018 Cohort"]
[null,null,"Recipients of a Federal Pell Grant","Recipients of a Subsidized Stafford Loan who did not receive a Pell Grant","Students who did not receive either a Pell Grant or a subsidized Stafford Loan","Total \n\n(sum of 3 columns to the left)"]
[]
["A","Initial 2018 cohort of first-time, full-time, bachelor's (or equivalent) degree-seeking undergraduate students",115,150,356,{"$f":"SUM(B95:E95)","v":621}]
["B","Of the initial 2018 cohort, how many did not persist and did not graduate for the following reasons: \n• Deceased\n• Permanently Disabled\n• Armed Forces\n• Foreign Aid Service of the Federal Government\n• Official church missions\n• Report Total Allowable Exclusions",1,0,0,{"$f":"SUM(B96:E96)","v":1}]
["C","Final 2018 cohort, after adjusting for allowable exclusions",{"$f":"(C95-C96)","v":114},150,356,620]
["D","Of the initial 2018 cohort, how many completed the program in four years or less (by Aug. 31, 2022)",82,111,264,457]
["E","Of the initial 2018 cohort, how many completed the program in more than four years but in five years or less (after Aug. 31, 2022 and by Aug. 31, 2023)",16,14,47,77]
["F","Of the initial 2018 cohort, how many completed the program in more than five years but in six years or less (after Aug. 31, 2023 and by Aug. 31, 2024)",2,1,3,6]
["G","Total graduating within six years (sum of lines D, E, and F)",{"$f":"SUM(C98:C100)","v":100},{"$f":"SUM(D98:D100)","v":126},314,540]
["H","Six-year graduation rate for 2018 cohort (G divided by C)",{"$f":"C101/C97","v":{"v":0.8771929824561403,"d":"88%"}},{"v":0.84,"d":"84%"},{"v":0.8820224719101124,"d":"88%"},{"v":0.8709677419354839,"d":"87%"}]
[]
[null,"Fall 2017 Cohort"]
[null,null,"Recipients of a Federal Pell Grant","Recipients of a Subsidized Stafford Loan who did not receive a Pell Grant","Students who did not receive either a Pell Grant or a subsidized Stafford Loan","Total \n\n(sum of 3 columns to the left)"]
[]
["A","Initial 2017 cohort of first-time, full-time, bachelor's (or equivalent) degree-seeking undergraduate students",124,112,307,{"$f":"SUM(C107:E107)","v":543}]
["B","Of the initial 2017 cohort, how many did not persist and did not graduate for the following reasons: \n• Deceased\n• Permanently Disabled\n• Armed Forces\n• Foreign Aid Service of the Federal Government\n• Official church missions\n• Report Total Allowable Exclusions",0,0,1,{"$f":"SUM(C108:E108)","v":1}]
["C","Final 2017 cohort, after adjusting for allowable exclusions",{"$f":"(C107-C108)","v":124},112,306,542]
["D","Of the initial 2017 cohort, how many completed the program in four years or less (by Aug. 31, 2021)",109,88,245,442]
["E","Of the initial 2017 cohort, how many completed the program in more than four years but in five years or less (after Aug. 31, 2021 and by Aug. 31, 2022)",4,8,30,42]
["F","Of the initial 2017 cohort, how many completed the program in more than five years but in six years or less (after Aug. 31, 2022 and by Aug. 31, 2023)",2,2,2,6]
["G","Total graduating within six years (sum of lines D, E, and F)",{"$f":"SUM(C110:C112)","v":115},98,277,490]
["H","Six-year graduation rate for 2016 cohort (G divided by C)",{"$f":"C113/C109","v":{"v":0.9274193548387096,"d":"93%"}},{"v":0.875,"d":"88%"},{"v":0.9052287581699346,"d":"91%"},{"$f":"F113/F109","v":{"v":0.9040590405904059,"d":"90%"}}]
[null,"For Two-Year Institutions"]
[null,"Please provide data for the 2021 cohort if available. If 2021 cohort data are not available, provide data for the 2020 cohort."]
[{"$nulls":5},"2021 Cohort","2020 Cohort"]
["B12","Initial cohort, total of first-time, full-time degree/certificate-seeking students:"]
["B13","Of the initial cohort, how many did not persist and did not graduate for the following reasons: \n• Death\n• Permanently Disability\n• Service in the armed forces, \n• Foreign aid service of the federal government\n• Official church missions\n• Report total allowable exclusions"]
["B14","Final cohort, after adjusting for allowable exclusions:",{"$nulls":3},{"$f":"F118-F119","v":0},0]
["B15","Completers of programs of less than two years duration (total):"]
["B16","Completers of programs of less than two years within 150 percent of normal time:"]
["B17","Completers of programs of at least two but less than four years (total):"]
["B18","Completers of programs of at least two but less than four-years within 150 percent of normal time:"]
["B19","Total transfers-out (within three years) to other institutions:"]
["B20","Total transfers to two-year institutions:"]
["B21","Total transfers to four-year institutions:"]
[null,"B22. Retention Rates"]
[null,"Report for the cohort of all full-time, first-time bachelor’s (or equivalent) degree-seeking undergraduate students who entered in Fall 2023 (or the preceding summer term). "]
[null,"• The initial cohort may be adjusted for students who departed for the following reasons:\n\n"]
[null,"* Death\n* Permanent Disability\n* Service in the armed forces\n* Foreign aid service of the federal government\n* Official church missions\n* No other adjustments to the initial cohort should be made."]
["B22","For the cohort of all full-time bachelor’s (or equivalent) degree-seeking undergraduate students who entered your institution as first-year students in Fall 2023 (or the preceding summer term), what percentage was enrolled at your institution as of the date your institution calculates its official enrollment in Fall 2024.",{"$nulls":4},{"$f":"478/518","v":{"v":0.9227799227799228,"d":"92.28%"}}]
[{"$nulls":6},"478 / 518"]

{"sheet":"CDS-C","index":2,"n_rows":349,"n_cols":9,"rows_kept":349,"merged":[[0,0,0,5],[2,0,3,0],[2,1,3,5],[4,1,4,5],[5,1,5,5],[6,1,6,5],[7,1,7,5],[8,1,8,5],[9,1,9,5],[10,1,10,3],[11,1,11,3],[12,1,12,3],[13,1,13,3],[14,1,14,3],[16,1,16,3],[17,1,17,3],[18,1,18,3],[19,1,19,3],[20,1,20,3],[22,1,22,3],[23,1,23,3],[24,1,24,3],[25,1,25,3],[26,1,26,3],[27,1,27,3],[28,1,28,3],[29,1,29,3],[30,1,30,3],[35,1,35,3],[36,1,36,3],[37,1,37,3],[38,1,38,3],[42,1,42,5],[43,1,43,5],[46,1,46,2],[48,1,48,3],[50,1,50,3],[51,1,51,3],[52,1,52,3],[53,1,53,3],[54,1,54,3],[56,1,56,2],[57,1,57,2],[62,1,62,5],[63,1,63,3],[64,1,64,3],[65,1,65,3],[67,1,67,5],[68,1,68,2],[69,1,69,2],[70,1,70,2],[72,1,72,5],[88,1,88,5],[89,1,89,3],[90,1,90,3],[91,1,91,3],[92,1,92,3],[94,1,94,5],[96,1,96,5],[119,1,119,5],[122,1,122,3],[123,1,123,3],[125,1,125,6],[131,1,131,6],[133,1,133,6],[135,1,135,5],[140,1,140,4],[142,1,143,2],[142,3,143,5],[145,1,145,5],[147,1,147,3],[151,2,151,5],[171,1,171,5],[173,1,173,5],[174,1,174,5],[175,1,175,5],[176,1,176,5],[177,1,177,5],[178,1,178,5],[179,1,179,5],[185,1,187,6],[200,1,200,6],[228,1,228,5],[229,1,229,3],[230,1,230,3],[231,1,231,3],[232,1,232,3],[233,1,233,3],[234,1,234,3],[235,1,235,3],[237,1,237,5],[241,1,241,2],[242,1,242,2],[243,1,243,2],[244,1,244,2],[245,1,245,2],[246,1,246,2],[247,1,247,2],[248,1,248,2],[249,1,249,2],[250,1,250,2],[251,1,251,2],[253,1,253,3],[254,1,254,3],[259,1,259,5],[262,1,262,2],[264,1,264,2],[267,1,267,2],[269,1,269,5],[275,1,275,2],[279,1,279,2],[286,1,286,3],[287,1,287,3],[301,1,301,2],[312,1,312,3],[313,1,313,3],[314,1,314,2],[317,1,317,3],[318,1,318,3],[325,1,325,3],[326,1,326,3],[327,1,327,3],[328,1,328,3],[329,1,329,3],[330,1,330,3],[331,1,331,3],[333,1,333,3],[334,1,334,3],[335,1,335,3],[336,1,336,5],[337,1,337,5],[341,1,341,3],[342,1,342,3],[343,1,343,3],[344,1,344,2],[345,1,345,2],[348,1,348,3]]}
["C. FIRST-TIME, FIRST-YEAR ADMISSION"]
[null,"C1-C2: Applications"]
["C1","First-time, first-year students: Provide the number of degree-seeking, first-time, first-year students who applied, were admitted, and enrolled (full- or part-time) in Fall 2024. "]
[]
[null,"•     Include early decision, early action, and students who began studies during summer in this cohort."]
[null,"•     Applicants should include only those students who fulfilled the requirements for consideration for       \n      admission (i.e., who completed actionable applications) and who have been notified of one of the \n      following actions: admission, non-admission, placement on waiting list, or application withdrawn (by \n      applicant or institution). "]
[null,"•     Since the total may include students who did not provide gender data, the detail need not sum to the total."]
[null,"•     If your institution collects and reports non-binary gender data, please use the \"Another Gender\" category."]
[null,"•     Note that recent high school graduates and other students without prior postsecondary experience will still be considered \"first-time students\" for fall enrollment reporting purposes even if they enrolled in the summer prior to  fall enrollment."]
[null,"•     Provide numbers of students for each of the following categories as of the institution’s official fall reporting date or as of October 15, 2024."]
[null,"First-Time, First-Year Student Applicants",null,null,"Total"]
[null,"Total first-time, first-year men who applied",null,null,4097]
[null,"Total first-time, first-year women who applied",null,null,4855]
[null,"Total first-time, first-year another gender who applied",null,null,13]
[null,"Total first-time, first-year unknown gender who applied",null,null,3]
[]
[null,"First-Time, First-Year Student Admits",null,null,"Total"]
[null,"Total first-time, first-year men who were admitted",null,null,1033]
[null,"Total first-time, first-year women who were admitted",null,null,1521]
[null,"Total first-time, first-year another gender who were admitted",null,null,4]
[null,"Total first-time, first-year unknown gender who were admitted",null,null,0]
[]
[null,"First-Time, First-Year Student Enrollees by Status",null,null,"Total"]
[null,"Total full-time, first-time, first-year men who enrolled",null,null,247]
[null,"Total part-time, first-time, first-year men who enrolled",null,null,0]
[null,"Total full-time, first-time, first-year women who enrolled",null,null,310]
[null,"Total part-time, first-time, first-year women who enrolled",null,null,0]
[null,"Total full-time, first-time, first-year another gender who enrolled",null,null,3]
[null,"Total part-time, first-time, first-year another gender who enrolled",null,null,0]
[null,"Total full-time, first-time, first-year unknown gender who enrolled",null,null,0]
[null,"Total part-time, first-time, first-year unknown gender who enrolled",null,null,0]
[]
[null,"If available, please provide residency breakdowns for total applicants, admits, and enrolled students: Fall 2024"]
[null,"Please report based on known physical address at time of application. "]
[]
[null,"First-Time, First-Year Student Applicants",null,null,"Total","In-State","Out-of-State","International","Unknown"]
[null,"Total first-time, first-year who applied",null,null,{"$f":"SUM(E12:E15)","v":8968}]
[null,"Total first-time, first-year who were admitted",null,null,{"$f":"SUM(E18:E21)","v":2558}]
[null,"Total first-time, first-year who enrolled",null,null,{"$f":"SUM(E24:E31)","v":560}]
[]
[]
[]
["C2","First-time, first-year wait-listed students"]
[null,"Students who met admission requirements but whose final admission was contingent on space availability"]
[]
[{"$nulls":3},"Yes","No"]
[null,"Do you have a policy of placing students on a waiting list?",null,"X"]
[]
[null,"If yes, please answer the questions below for Fall 2024 admissions:"]
[]
[null,"WAITING LIST",null,null,"TOTAL"]
[null,"Number of qualified applicants offered a place on waiting list:",null,null,909]
[null,"Number accepting a place on the waiting list:",null,null,507]
[null,"Number of wait-listed students admitted:",null,null,63]
[]
[null,"Is your waiting list ranked?",null,"Yes","No"]
[null,"If yes, do you release that information to students?",null,null,"n/a"]
[null,"Do you release that information to school counselors?",null,null,"n/a"]
[]
[null,"C3-C5: Admission Requirements"]
[]
["C3","High school completion requirement"]
[null,"Check the appropriate box to identify your high school completion requirement for degree-seeking entering students:"]
[null,"High school diploma is required and GED is accepted"]
[null,"High school diploma is required and GED is not accepted"]
["X","High school diploma or equivalent is not required"]
[]
["C4","Does your institution require or recommend a general college-preparatory program for degree-seeking students?"]
[null,"Require"]
["X","Recommend"]
[null,"Neither require nor recommend"]
[]
["C5","Distribution of high school units required and/or recommended. Specify the distribution of academic high school course units required and/or recommended of all or most degree-seeking students using Carnegie units (one unit equals one year of study or its equivalent). If you use a different system for calculating units, please convert."]
[null,"Distribution of high school units","Units\nRequired","Units\nRecommended"]
[null,"Total academic units"]
[null,"English",null,4]
[null,"Mathematics",null,3]
[null,"Science",null,3]
[null,"    Of these, units that must be \n    lab",null,3]
[null,"Foreign language",null,3]
[null,"Social studies",null,3]
[null,"History",null,3]
[null,"Academic electives"]
[null,"Computer Science"]
[null,"Visual/Performing Arts"]
[null,"Other (specify)"]
[]
[null,"C6-C7: Basis for Selection"]
["C6","Do you have an open admission policy, under which virtually all secondary school graduates or students with GED equivalency diplomas are admitted without regard to academic record, test scores, or other qualifications? If so, check which applies:"]
[null,"Open admission policy as described above for all students "]
[null,"Open admission policy as described above for most students, but--"]
[null,"selective admission for out-of-state students"]
[null,"selective admission to some programs"]
[null,"other (explain):"]
[]
[]
["C7","Relative importance of each of the following academic and nonacademic factors in your first-time, first-year, degree-seeking general (not including programs with specific criteria) admissions decisions."]
[null,"Academic","Very Important","Important","Considered","Not Considered"]
[null,"Rigor of secondary school record","X"]
[null,"Class rank",null,null,"X"]
[null,"Academic GPA","X"]
[null,"Standardized test scores",null,null,"X"]
[null,"Application Essay",null,"X"]
[null,"Recommendation(s)",null,"X"]
[null,"Nonacademic","Very Important","Important","Considered","Not Considered"]
[null,"Interview",null,null,"X"]
[null,"Extracurricular activities",null,"X"]
[null,"Talent/ability",null,null,"X"]
[null,"Character/personal qualities",null,"X"]
[null,"First generation ",null,null,"X"]
[null,"Alumni/ae relation",null,null,"X"]
[null,"Geographical residence",null,null,"X"]
[null,"State residency",null,null,"X"]
[null,"Religious affiliation/commitment",{"$nulls":3},"X"]
[null,"Volunteer work",null,null,"X"]
[null,"Work experience",null,null,"X"]
[null,"Level of applicant’s interest"]
[]
[null,"Please provide additional information if the importance of any specific academic or nonacademic factors differ by academic program."]
[]
[null,"C8: SAT and ACT Policies"]
[null,"Entrance exams "]
[{"$nulls":4},"Yes","No"]
[null,"Does your institution make use of SAT or ACT scores in admission decisions for first-time, first-year, degree-seeking applicants?   ",null,null,"X"]
[]
["C8A","If yes, place check marks in the appropriate boxes below to reflect your institution’s policies for use in admission for students applying for Fall 2026."]
[null,"Admission","Required to be considered for admission","Required for some","Recommended","Not required for admission, but considered if submitted","Not considered for admission, even if submitted"]
[null,"SAT or ACT",{"$nulls":3},"X"]
[null,"ACT Only"]
[null,"SAT Only"]
[]
["C8B","Has been removed from the CDS."]
[]
["C8C","Has been removed from the CDS."]
[]
["C8D","In addition, does your institution use applicants' test scores for academic advising?"]
[]
["X","Yes"]
[null,"No"]
[]
["C8E","Latest date by which SAT or ACT scores must be received for fall-term admission",{"$nulls":3},"2025-01-15"]
[]
["C8F","If necessary, use this space to clarify your test policies (e.g., if tests are recommended for some students, or if tests are not required of some students due to differences by academic program, student academic background, or if other examinations may be considered in lieu of the SAT and ACT):  ",null,"Submission of ACT or SAT test results is optional. If English is neighrs the native language nor the primary language of instruction, results of an English-proficiency test (IELTS, TOEFL, or Duolingo English Test) are required."]
[]
[]
["C8G","Please indicate which tests your institution uses for placement (e.g., state tests):"]
[null,"SAT"]
[null,"ACT"]
[null,"AP"]
[null,"CLEP"]
[null,"Institutional Exam"]
[null,"State Exam (specify):"]
{"$rows_empty":18}
[null,"C9-C12: First-time, first-year Profile "]
[null,"Provide information for ALL enrolled, degree-seeking, full-time and part-time, first-time, first-year students enrolled in Fall 2024, including students who began studies during summer, international students/nonresidents, and students admitted under special arrangements."]
[]
["C9","Percent and number of first-time, first-year students enrolled in Fall 2024 who submitted national standardized (SAT/ACT) test scores."]
[null,"•     Include information for ALL enrolled, degree-seeking, first-time, first-year students who submitted \n      test scores."]
[null,"•     Do not include partial test scores (e.g., mathematics scores but not critical reading for a category of \n      students) or combine other standardized test results (such as TOEFL) in this item."]
[null,"•     Do not convert SAT scores to ACT scores and vice versa."]
[null,"•     If a student submitted multiple sets of scores for a single test, report this information according to how \n      you use the data. For example:"]
[null,"•     If you consider the highest scores from either submission, use the highest combination of scores \n      (e.g., verbal from one submission, math from the other)."]
[null,"•     If you average the scores, use the average to report the scores."]
[]
[null,null,"Percent","Number"]
[null,"Submitting SAT Scores",{"v":0.29,"d":"29%"},162]
[null,"Submitting ACT Scores",{"v":0.23,"d":"23%"},128]
[]
[null,"For each assessment listed below, report the score that represents the 25th percentile (the score that 25 percent of the first-time, first-year population scored at or below) and the 75th percentile score (the score that 25 percent scored at or above)."]
[]
[]
[]
[null,"Assessment","25th Percentile","50th Percentile","75th Percentile"]
[null,"SAT Composite",1360,1440,1490]
[null,"SAT Evidence-Based Reading and Writing",680,720,750]
[null,"SAT Math",670,720,760]
[null,"ACT Composite",29.5,32,34]
[null,"ACT Math",27,29,32]
[null,"ACT English",30,34,35]
[null,"ACT Writing"]
[null,"ACT Science",29,31,34]
[null,"ACT Reading",33,35,36]
[]
[null,"Percent of first-time, first-year students with scores in each range:"]
[]
[null,"Score Range","SAT Evidence-Based Reading and Writing","SAT Math"]
[null,"700-800",{"v":0.66,"d":"66.00%"},{"v":0.62,"d":"62.00%"}]
[null,"600-699",{"v":0.29,"d":"29.00%"},{"v":0.33,"d":"33.00%"}]
[null,"500-599",{"v":0.05,"d":"5.00%"},{"v":0.04,"d":"4.00%"}]
[null,"400-499",{"v":0,"d":"0.00%"},{"v":0.01,"d":"1.00%"}]
[null,"300-399",{"v":0,"d":"0.00%"},{"v":0,"d":"0.00%"}]
[null,"200-299",{"v":0,"d":"0.00%"},{"v":0,"d":"0.00%"}]
[null,"Totals should = 100%",{"$f":"SUM(C204:C209)","v":{"v":1,"d":"100.00%"}},{"v":1,"d":"100.00%"}]
[]
[null,"Score Range","SAT Composite"]
[null,"1400-1600",{"v":0.67,"d":"67.00%"}]
[null,"1200-1399",{"v":0.3,"d":"30.00%"}]
[null,"1000-1199",{"v":0.03,"d":"3.00%"}]
[null,"800-999",{"v":0,"d":"0.00%"}]
[null,"600-799",{"v":0,"d":"0.00%"}]
[null,"400-599",{"v":0,"d":"0.00%"}]
[null,"Totals should = 100%",{"$f":"SUM(C213:C218)","v":{"v":1,"d":"100.00%"}}]
[]
[null,"Score Range","ACT Composite","ACT English","ACT Math","ACT Reading","ACT Science"]
[null,"30-36",{"v":0.75,"d":"75.00%"},{"v":0.8,"d":"80.00%"},{"v":0.48,"d":"48.00%"},{"v":0.9,"d":"90.00%"},{"v":0.67,"d":"67.00%"}]
[null,"24-29",{"v":0.21,"d":"21.00%"},{"v":0.18,"d":"18.00%"},{"v":0.45,"d":"45.00%"},{"v":0.07,"d":"7.00%"},{"v":0.3,"d":"30.00%"}]
[null,"18-23",{"v":0.04,"d":"4.00%"},{"v":0.01,"d":"1.00%"},{"v":0.06,"d":"6.00%"},{"v":0.03,"d":"3.00%"},{"v":0.03,"d":"3.00%"}]
[null,"12-17",{"v":0,"d":"0.00%"},{"v":0.01,"d":"1.00%"},{"v":0.01,"d":"1.00%"},{"v":0,"d":"0.00%"},{"v":0,"d":"0.00%"}]
[null,"6-11",{"v":0,"d":"0.00%"},{"v":0,"d":"0.00%"},{"v":0,"d":"0.00%"},{"v":0,"d":"0.00%"},{"v":0,"d":"0.00%"}]
[null,"Below 6",{"v":0,"d":"0.00%"},{"v":0,"d":"0.00%"},{"v":0,"d":"0.00%"},{"v":0,"d":"0.00%"},{"v":0,"d":"0.00%"}]
[null,"Totals should = 100%",{"$f":"SUM(C222:C227)","v":{"v":1,"d":"100.00%"}},{"$f":"SUM(D222:D227)","v":{"v":1,"d":"100.00%"}},{"v":1,"d":"100.00%"},{"v":1,"d":"100.00%"},{"v":1,"d":"100.00%"}]
["C10","Percent of all degree-seeking, first-time, first-year students who had high school class rank within each of the following ranges (report information for those students from whom you collected high school rank information)"]
[null,"Assessment",null,null,"Percent"]
[null,"Percent in top tenth of high school graduating class",null,null,{"v":0.57,"d":"57%"}]
[null,"Percent in top quarter of high school graduating class",null,null,{"v":0.86,"d":"86%"}]
[null,"Percent in top half of high school graduating class",null,null,{"v":1,"d":"100%"},"Top half + "]
[null,"Percent in bottom half of high school graduating class",null,null,{"v":0,"d":"0%"},"bottom half = 100%"]
[null,"Percent in bottom quarter of high school graduating class",null,null,{"v":0,"d":"0%"}]
[null,"Percent of total first-time, first-year students who submitted high school class rank:",null,null,{"v":0.23,"d":"23%"}]
[]
["C11","Percentage of all enrolled, degree-seeking, first-time, first-year students who had high school grade-point averages within each of the following ranges (using 4.0 scale)."]
[null,"* Report information only for those students from whom you collected high school GPA."]
[null,"* If you are able to report GPA ranges separately for students that also submitted at least one test score versus those who did not submit a test score, please do so in the respective columns. If you are unable to report these data, please report the ranges for all students."]
[]
[null,"Score Range",null,"Percent\n(Students who submitted scores)","Percent\n(Students who did not submit scores)","Percent (All enrolled students)"]
[null,"Percent who had GPA of 4.0"]
[null,"Percent who had GPA between 3.75 and 3.99"]
[null,"Percent who had GPA between 3.50 and 3.74"]
[null,"Percent who had GPA between 3.25 and 3.49"]
[null,"Percent who had GPA between 3.00 and 3.24"]
[null,"Percent who had GPA between 2.50 and 2.99"]
[null,"Percent who had GPA between 2.0 and 2.49"]
[null,"Percent who had GPA between 1.0 and 1.99"]
[null,"Percent who had GPA below 1.0"]
[null,"Totals should = 100%",null,{"$f":"SUM(D243:D251)","v":{"v":0,"d":"0.00%"}},{"v":0,"d":"0.00%"},{"$f":"SUM(F243:F251)","v":{"v":0,"d":"0.00%"}}]
[]
["C12","Average high school GPA of all degree-seeking, first-time, first-year students who submitted GPA:  ",null,null,{"$f":"SUM(E247:E253)","v":{"v":0,"d":"0.00"}}]
[null,"Percent of total first-time, first-year students who submitted high school GPA:  ",null,null,{"v":0,"d":"0.00%"}]
[]
[null,"C13-C20: Admission Policies"]
[]
["C13","Application Fee"]
[null,"If your institution has waived its application fee for the Fall 2026 admission cycle please select no."]
[]
[{"$nulls":3},"Yes","No"]
[null,"Does your institution have an application fee?",null,null,"X"]
[]
[null,"Amount of application fee: "]
[]
[{"$nulls":3},"Yes","No"]
[null,"Can it be waived for applicants with financial need?"]
[]
[null,"If you have an application fee and an on-line application option, please indicate policy for students who apply on-line:"]
[]
[null,"Same fee"]
[null,"Free"]
[null,"Reduced"]
[{"$nulls":3},"Yes","No"]
[null,"Can on-line application fee be waived for applicants with financial need?"]
[]
["C14","Application closing date"]
[{"$nulls":3},"Yes","No"]
[null,"Does your institution have an application closing date?",null,"X"]
[]
[null,null,"Date"]
[null,"Application closing date (fall)","2024-01-15"]
[null,"Priority Date"]
[]
[]
[{"$nulls":4},"Yes","No"]
["C15","Are first-time, first-year students accepted for terms other than the fall?",{"$nulls":3},"X"]
[]
["C16","Notification to applicants of admission decision sent (fill in one only)"]
[]
[null,"On a rolling basis beginning (date):  "]
["X","By (date):  ","2024-03-16"]
[null,"Other:  "]
[]
["C17","Reply policy for admitted applicants (fill in one only)"]
[]
["X","Must reply by (date): ","2024-05-01"]
[null,"No set date"]
[null,"Must reply by May 1st or within ",null,"weeks if notified thereafter"]
[null,"Other:"]
[]
[null,"Deadline for housing deposit (MMDD): ","2024-05-01"]
[null,"Amount of housing deposit:",{"v":300,"d":"$300"}]
[]
[null,"Refundable if student does not enroll?"]
[]
[null,"Yes, in full"]
[null,"Yes, in part"]
["X","No"]
[]
["C18","Deferred admission"]
[{"$nulls":4},"Yes","No"]
[null,"Does your institution allow students to postpone enrollment after admission?",null,null,"X"]
[null,"If yes, maximum period of postponement:",null,"1 year"]
[]
["C19","Early admission of high school students"]
[{"$nulls":4},"Yes","No"]
[null,"Does your institution allow high school students to enroll as full-time, first-time, first-year students one year or more before high school graduation?",{"$nulls":3},"X"]
[]
["C20","Common Application: Question removed from CDS. (Initiated during 2006-2007 cycle)"]
[]
[null,"C21-C22: Early Decision and Early Action Plans"]
[]
["C21","Early Decision"]
[{"$nulls":4},"Yes","No"]
[null,"Does your institution offer an early decision plan (an admission plan that permits students to apply and be notified of an admission decision well in advance of the regular notification date and that asks students to commit to attending if accepted) for first-time, first-year applicants for fall enrollment? ",null,null,"X"]
[null,"If “yes,” please complete the following: "]
[null,"First or only early decision plan closing date",null,null,"2024-11-01"]
[null,"First or only early decision plan notification date",null,null,"2024-12-08"]
[null,"Other early decision plan closing date",null,null,"2024-01-01"]
[null,"Other early decision plan notification date",null,null,"2024-01-26"]
[]
[null,"For the Fall 2024 entering class:"]
[null,"Number of early decision applications received by your institution",null,null,447]
[null,"Number of applicants admitted under early decision plan",null,null,176]
[null,"Please provide significant details about your early decision plan:  "]
[]
[]
[]
["C22","Early action"]
[{"$nulls":4},"Yes","No"]
[null,"Do you have a nonbinding early action plan whereby students are notified of an admission decision well in advance of the regular notification date but do not have to commit to attending your college?",null,null,"X"]
[null,"If “yes,” please complete the following: "]
[null,"Early action closing date",null,"2024-11-01"]
[null,"Early action notification date",null,"2024-12-21"]
[]
[{"$nulls":4},"Yes","No"]
[null,"Is your early action plan a “restrictive” plan under which you limit students from applying to other early plans?",{"$nulls":3},"X"]

{"sheet":"CDS-D","index":3,"n_rows":102,"n_cols":7,"rows_kept":102,"merged":[[0,0,0,6],[3,1,3,3],[4,1,4,3],[5,1,5,3],[7,1,7,6],[8,1,8,6],[17,1,17,3],[23,1,23,3],[24,1,24,3],[25,1,25,3],[27,1,27,4],[37,1,37,3],[39,1,39,3],[41,1,41,5],[42,1,42,6],[44,1,44,6],[53,1,53,3],[54,1,54,3],[56,1,56,6],[57,1,57,6],[59,1,59,2],[60,1,60,2],[62,1,62,3],[63,1,63,3],[65,1,65,3],[66,1,66,3],[68,1,68,3],[70,1,70,3],[72,1,72,6],[73,1,73,6],[78,1,78,3],[79,1,79,3],[80,1,80,3],[81,1,81,3],[83,1,83,3],[84,1,86,3],[84,4,86,4],[84,5,86,5],[88,1,88,3],[89,1,92,3],[89,4,92,4],[89,5,92,5],[94,1,94,3],[95,1,96,3],[95,4,96,4],[95,5,96,5],[98,1,98,5],[99,1,99,5],[101,1,101,5],[102,1,102,5]]}
["D. TRANSFER ADMISSION"]
[]
[null,"D1-D2: Fall Applicants"]
[{"$nulls":4},"Yes","No"]
["D1","Does your institution enroll transfer students? (If no, please skip to Section E)",null,null,"X"]
[null,"If yes, may transfer students earn advanced standing credit by transferring credits earned from course work completed at other colleges/universities?"]
[]
["D2","Provide the number of students who applied, were admitted, and enrolled as degree-seeking transfer students in Fall 2024."]
[null,"If your institution collects and reports non-binary gender data, please use the \"Another Gender\" category."]
[null,"Transfer Admission","Applicants","Admitted Applicants","Enrolled Applicants"]
[null,"Men",{"v":80,"d":"80 "},{"v":29,"d":"29 "},{"v":8,"d":"8 "}]
[null,"Women",{"v":105,"d":"105 "},{"v":24,"d":"24 "},{"v":11,"d":"11 "}]
[null,"Another Gender",{"v":0,"d":"0 "},{"v":0,"d":"0 "},{"v":0,"d":"0 "}]
[null,"Unknown",{"v":0,"d":"0 "},{"v":0,"d":"0 "},{"v":0,"d":"0 "}]
[null,"Total",{"$f":"SUM(C11:C12)","v":{"v":185,"d":"185 "}},{"$f":"SUM(D11:D12)","v":{"v":53,"d":"53 "}},{"$f":"SUM(E11:E12)","v":{"v":19,"d":"19 "}}]
[]
[null,"D3-D11: Application for Admission"]
["D3","Indicate terms for which transfers may enroll:"]
[]
["X","Fall"]
[null,"Winter"]
[null,"Spring"]
[null,"Summer"]
[{"$nulls":4},"Yes","No"]
["D4","Must a transfer applicant have a minimum number of credits completed or else must apply as an entering first-year student?",null,null,"X"]
[null,"If yes, what is the minimum number of credits and the unit of measure?  ",null,null,12,"Credits"]
[]
["D5","Indicate all items required of transfer students to apply for admission:"]
[]
[null,"Requirements","Required of All","Recommended\nof All","Recommended\nof Some","Required of Some","Not Required"]
[null,"High school transcript","X"]
[null,"College transcript(s)","X"]
[null,"Essay or personal statement","X"]
[null,"Interview",{"$nulls":4},"X"]
[null,"Standardized test scores",{"$nulls":4},"X"]
[null,"Statement of good standing from prior institution(s)","X"]
[]
["D6","If a minimum high school grade point average is required of transfer applicants, specify (on a 4.0 scale):",null,null,"n/a"]
[]
["D7","If a minimum college grade point average is required of transfer applicants, specify (on a 4.0 scale):\n",null,null,"n/a"]
[]
["D8","List any other application requirements specific to transfer applicants:"]
[]
[]
["D9","List application priority, closing, notification, and candidate reply dates for transfer students. If applications are reviewed on a continuous or rolling basis, place a check mark in the “Rolling admission” column."]
["D9","Term","Priority Date","Closing Date","Notification Date","Reply Date","Rolling Admission"]
["D9","Fall","n/a","2024-04-01","2024-05-04","2024-05-25","n/a"]
["D9","Winter"]
["D9","Spring"]
["D9","Summer"]
[]
[]
[]
[{"$nulls":4},"Yes","No"]
["D10","Does an open admission policy, if reported, apply to transfer students?",{"$nulls":3},"X"]
[]
["D11","Describe additional requirements for transfer admission, if applicable: "]
[]
[]
[null,"D12-D17: Transfer Credit Policies"]
["D12","Report the lowest grade earned for any course that may be transferred for credit:  ",null,"C-"]
[]
[{"$nulls":4},"Number","Unit Type"]
["D13","Maximum number of credits or courses that may be transferred from a two-year institution:",null,null,64,"Credit(s)"]
[]
[{"$nulls":4},"Number","Unit Type"]
["D14","Maximum number of credits or courses that may be transferred from a four-year institution:",null,null,64,"Credit(s)"]
[]
["D15","Minimum number of credits that transfers must complete at your institution to earn an associate degree:",null,null,"n/a"]
[]
["D16","Minimum number of credits that transfers must complete at your institution to earn a bachelor’s degree:",null,null,64]
[]
["D17","Describe other transfer credit policies:"]
[]
[]
[null,"D18-D22: Military Service Transfer Credit Policies"]
["D18","Does your institution accept the following military/veteran transfer credits:"]
[]
[{"$nulls":4},"Yes","No"]
[null,"American Council on Education (ACE)"]
[null,"College Level Examination Program (CLEP)"]
[null,"DANTES Subject Standardized Tests (DSST)"]
[]
[{"$nulls":4},"Number","Unit Type"]
["D19","Maximum number of credits or courses that may be transferred based on military education evaluated by the American Council on Education (ACE): "]
[]
[]
[]
[{"$nulls":4},"Number","Unit Type"]
["D20","Maximum number of credits or courses that may be transferred based on Department of Defense supported prior learning assessments (College Level Examination Program (CLEP) or DANTES Subject Standardized Tests (DSST)):"]
[]
[]
[]
[]
[{"$nulls":4},"Yes","No"]
["D21","Are the military/veteran credit transfer policies published on your website?"]
[]
[]
[null,"If yes, please provide the URL where the policy can be located:"]
[]
[]
["D22","Describe other military/veteran transfer credit policies unique to your institution:"]

{"sheet":"CDS-E","index":4,"n_rows":42,"n_cols":2,"rows_kept":42,"merged":[[0,0,0,2],[23,1,23,2],[41,1,41,2]]}
["E. ACADEMIC OFFERINGS AND POLICIES"]
[]
["E1","Special study options: Identify those programs available at your institution. Refer to the glossary for definitions."]
[]
[null,"Accelerated program"]
[null,"Comprehensive transition and postsecondary program for students with intellectual disabilities"]
["x","Cross-registration"]
[null,"Distance learning"]
["x","Double major"]
[null,"Dual enrollment"]
[null,"English as a Second Language (ESL)"]
[null,"Exchange student program (domestic)"]
[null,"External degree program"]
["x","Honors Program"]
["x","Independent study"]
["x","Internships"]
[null,"Liberal arts/career combination"]
["x","Student-designed major"]
["x","Study abroad"]
[null,"Teacher certification program"]
["x","Undergraduate Research"]
[null,"Weekend college"]
[null,"Other (specify):"]
[]
[]
["E2","Has been removed from the CDS."]
[]
["E3","Areas in which all or most students are required to complete some course work prior to graduation:"]
["x","Arts/fine arts"]
[null,"Computer literacy"]
["x","English (including composition)"]
["x","Foreign languages"]
[null,"History"]
[null,"Physical Education"]
[null,"Humanities"]
["x","Intensive writing"]
["x","Mathematics"]
[null,"Philosophy"]
["x","Sciences (biological or physical)"]
["x","Social science"]
["x","Other (describe):"]
[null,"Internationalism, U.S. Identities and Differences"]

{"sheet":"CDS-F","index":5,"n_rows":57,"n_cols":6,"rows_kept":57,"merged":[[0,0,0,5],[20,1,20,3],[37,1,37,5],[47,1,47,2],[48,1,48,2],[49,1,49,2],[50,1,50,3],[58,1,58,2]]}
["F. STUDENT LIFE"]
[]
["F1","Percentages of first-time, first-year degree-seeking students and degree-seeking undergraduates enrolled in Fall 2024 who fit the following categories:"]
[null,null,"First-time, first-year students ","Undergraduates"]
[null,"Percent who are from out of state (exclude international/nonresidents from the numerator and denominator)",{"$f":"(443-79)/443","v":{"v":0.8216704288939052,"d":"82%"}},{"$f":"(1817-360)/1817","v":{"v":0.8018712162905889,"d":"80%"}}]
[null,"Percent of men who join fraternities",{"v":0,"d":"0%"},{"v":0,"d":"0%"}]
[null,"Percent of women who join sororities",{"v":0,"d":"0%"},{"v":0,"d":"0%"}]
[null,"Percent who live in college-owned, -operated, or -affiliated housing",{"v":1,"d":"100%"},{"$f":"1225/2138","v":{"v":0.5729653882132835,"d":"57%"}}]
[null,"Percent who live off campus or commute",{"v":0,"d":"0%"},{"v":0.43,"d":"43%"}]
[null,"Percent of students age 25 and older",{"v":0,"d":"0%"},"<1%"]
[null,"Average age of full-time students",{"v":18.2,"d":"18"},20]
[null,"Average age of all students (full- and part-time)",18,20]
[]
["F2","Activities offered. Identify those programs available at your institution. "]
[]
["x","Campus Ministries"]
["x","Choral groups"]
["x","Concert band"]
["x","Dance"]
["x","Drama/theater"]
["x","International Student Organization"]
["x","Jazz band"]
["x","Literary magazine"]
[null,"Marching band"]
["x","Model UN"]
["x","Music ensembles"]
["x","Musical theater"]
[null,"Opera"]
[null,"Pep band"]
["x","Radio station"]
["x","Student government"]
["x","Student newspaper"]
[null,"Student-run film society"]
["x","Symphony orchestra"]
[null,"Television station"]
[null,"Yearbook"]
[]
["F3","ROTC (program offered in cooperation with Reserve Officers' Training Corps)"]
[null,"Programs","Marine Option \n(for Naval ROTC)","On Campus","At Cooperating Institution","Name of Cooperating Institution"]
[null,"Army ROTC is offered:",null,null,"Yes","U. of MN - TC"]
[null,"Naval ROTC is offered:",null,null,"Yes","U. of MN - TC"]
[null,"Air Force ROTC is offered:",null,null,"Yes","U. of St. Thomas"]
[]
["F4","Housing: Check all types of college-owned, -operated, or -affiliated housing available for undergraduates at your institution."]
["x","Coed dorms"]
[null,"Men's dorms"]
[null,"Women's dorms"]
[null,"Apartments for married students"]
["x","Apartments for single students"]
["x","Special housing for disabled students"]
[null,"Special housing for international students"]
[null,"Fraternity/sorority housing"]
["x","Cooperative housing"]
["x","Theme housing"]
[null,"Wellness housing"]
["x","Living Learning Communities"]
["x","Other housing options (specify): Single-gender floors available within Coed dorms"]

{"sheet":"CDS-G","index":6,"n_rows":63,"n_cols":5,"rows_kept":63,"merged":[[0,0,0,4],[3,1,3,4],[5,1,5,5],[7,1,9,5],[10,1,10,4],[12,1,12,4],[13,1,13,4],[14,1,14,5],[15,1,15,5],[16,1,16,5],[17,1,17,5],[34,1,34,3],[36,2,36,4],[37,1,37,5],[38,1,38,2],[39,1,39,2],[41,1,41,2],[42,1,42,2],[43,1,43,2],[44,1,44,2],[45,1,45,4],[46,1,46,4],[54,1,54,4],[56,1,56,2]]}
["G. ANNUAL EXPENSES"]
[]
["G0","Please provide the URL of your institution’s net price calculator:"]
[null,"https://www.macalester.edu/financial-aid/estimate/"]
[]
[null,"Provide 2024-2025 academic year costs of attendance for the following categories that are applicable to your institution."]
[]
["x","Check here if your institution's 2025-2026 academic year costs of attendance are not available at this time and provide an approximate date (i.e., month/day) when your institution's final 2025-2026 academic year costs of attendance will be available:"]
[]
[]
[null,"2025-03-01"]
[]
["G1","Undergraduate full-time tuition, required fees, food and housing"]
[null,"List the typical tuition, required fees, and food and housing for a full-time undergraduate student for the FULL 2025-2026 academic year. (30 semester hours or 45 quarter hours for institutions that derive annual tuition by multiplying credit hour cost by number of credits). "]
[null,"•     A full academic year refers to the period of time generally extending from September to June; usually \n      equated to two semesters, two trimesters, three quarters, or the period covered by a four-one-four plan. "]
[null,"•     Food and housing is defined as double occupancy and 19 meals per week or the maximum meal plan. "]
[null,"•     Required fees include only charges that all full-time students must pay that are not included in tuition \n      (e.g., registration, health, or activity fees.) "]
[null,"•     Do not include optional fees (e.g., parking, laboratory use)."]
[]
["G1","PRIVATE INSTITUTIONS","First-Year","Undergraduates"]
[null,"Tuition*",{"v":67874,"d":"$67,874"},{"v":67874,"d":"$67,874"}]
[]
[null,"PUBLIC INSTITUTIONS","First-Year","Undergraduates"]
[null,"Tuition: In-district"]
[null,"Tuition: In-state (out-of-district):"]
[null,"Tuition: Out-of-state:"]
[null,"Tuition: Non-resident"]
[]
[null,"FOR ALL INSTITUTIONS","First-Year","Undergraduates"]
[null,"Required Fees:",{"v":230,"d":"$230"},{"v":230,"d":"$230"}]
[null,"Food and housing (on-campus):",{"$f":"SUM(C32:C33)","v":{"v":15760,"d":"$15,760"}},{"$f":"SUM(D32:D33)","v":{"v":15760,"d":"$15,760"}}]
[null,"Housing Only (on-campus):",{"v":8304,"d":"$8,304"},{"v":8304,"d":"$8,304"}]
[null,"Food Only (on-campus meal plan):",{"v":7456,"d":"$7,456"},{"v":7456,"d":"$7,456"}]
[]
[null,"Comprehensive tuition and food and housing fee (if your college cannot provide separate tuition and food and housing fees):\n"]
[]
[null,"Other:","*Beginning in 2024-2025, tuition includes required course materials. Visit the Mac Books FAQ for more information: https://www.macalester.edu/macbooks/"]
[]
[{"$nulls":3},"Minimum","Maximum"]
["G2","Number of credits per term a student can take for the stated full-time tuition.",null,12,18]
[]
[{"$nulls":3},"Yes","No"]
["G3","Do tuition and fees vary by year of study (e.g., sophomore, junior, senior)?",null,null,"No"]
["G4","Do tuition and fees vary by undergraduate instructional program?                         ",null,null,"No"]
[null,"If yes, what percentage of full-time undergraduates pay more than the tuition and fees reported in G1?"]
[]
["G5","Provide the estimated expenses for a typical full-time undergraduate student: \nSee Also: https://www.macalester.edu/financial-aid/tuition/ "]
[null,null,"Residents","Commuters\n(living at home)","Commuters\n(not living at home)"]
[null,"Books and supplies*",{"v":0,"d":"$0"},{"v":0,"d":"$0"},{"v":0,"d":"$0"}]
[null,"Housing only:","Not Applicable","Not Applicable"]
[null,"Food only:","Not Applicable"]
[null,"Food and housing total**","Not Applicable","Not Applicable",{"v":18564,"d":"$18,564"}]
[null,"Transportation:"]
[null,"Other expenses:",{"v":2270,"d":"$2,270"},{"v":2270,"d":"$2,270"},{"v":2270,"d":"$2,270"}]
[null,"*Beginning in 2024-2025, tuition includes required course materials. Visit the Mac Books FAQ for more information: https://www.macalester.edu/macbooks/\n** If your college cannot provide separate food and housing figures for commuters not living at home"]
[]
["G6","Undergraduate per-credit-hour charges (tuition only): "]
[null,"PRIVATE INSTITUTIONS:",{"$f":"67874/32","v":{"v":2121.0625,"d":"$2,121"}}]
[null,"PUBLIC INSTITUTIONS:"]
[null,"In-district:"]
[null,"In-state (out-of-district):"]
[null,"Out-of-state:"]
[null,"NONRESIDENTS:",{"$f":"67874/32","v":{"v":2121.0625,"d":"$2,121"}}]

{"sheet":"CDS-H","index":7,"n_rows":211,"n_cols":28,"rows_kept":211,"merged":[[0,0,0,5],[2,1,2,5],[3,1,3,5],[4,1,4,5],[5,1,5,5],[6,1,6,5],[7,1,7,5],[8,1,8,5],[9,1,9,5],[10,1,10,5],[11,1,11,5],[12,1,12,5],[13,1,13,5],[14,3,14,4],[15,3,15,4],[16,3,16,4],[17,3,17,4],[19,1,19,5],[20,1,20,5],[21,1,21,5],[22,1,22,5],[24,1,24,5],[26,1,26,5],[27,1,27,5],[28,1,28,5],[29,1,29,5],[30,1,30,5],[31,1,31,5],[32,1,32,5],[33,1,33,5],[35,1,35,3],[36,1,36,3],[37,1,37,5],[39,1,39,2],[40,1,40,2],[41,1,41,2],[43,1,43,3],[45,1,45,3],[46,1,46,3],[47,1,47,3],[48,1,48,3],[49,1,49,3],[51,1,51,3],[52,1,52,3],[53,1,53,3],[54,1,54,3],[55,1,55,3],[56,1,56,3],[57,1,57,3],[59,1,59,5],[60,1,60,5],[61,1,61,5],[62,1,62,5],[63,1,63,5],[80,1,80,5],[81,1,81,5],[82,1,82,5],[83,1,83,5],[90,2,90,5],[92,2,92,5],[93,2,93,5],[94,2,94,5],[95,2,95,5],[96,2,96,5],[97,2,97,5],[98,2,98,5],[99,2,99,5],[100,2,100,5],[102,1,102,4],[103,1,103,5],[104,0,104,5],[105,0,105,5],[106,0,106,5],[107,0,108,0],[107,1,108,2],[107,3,108,3],[107,4,108,4],[107,5,108,5],[115,1,115,5],[116,2,116,5],[118,1,118,5],[120,1,120,3],[121,1,121,3],[122,1,122,3],[124,1,124,4],[126,1,126,4],[128,1,128,4],[130,1,130,5],[132,1,132,3],[133,1,133,3],[134,1,134,3],[135,1,135,3],[139,1,139,5],[141,1,141,3],[142,1,142,3],[143,1,143,3],[144,1,144,3],[145,1,145,3],[146,1,146,3],[147,1,147,3],[148,1,148,3],[150,1,150,5],[154,2,155,2],[157,1,157,5],[161,1,161,2],[168,1,168,2],[169,1,169,2],[170,1,170,2],[174,1,174,2],[175,1,175,3],[176,1,176,3],[177,1,177,3],[178,1,178,3],[179,1,179,3],[180,1,180,3],[181,1,181,3],[182,1,182,3],[183,1,183,3],[185,1,185,2],[186,1,186,2],[187,1,187,3],[188,1,188,3],[189,1,189,3],[190,1,190,3],[191,1,191,3],[192,1,192,3],[193,1,193,3],[194,1,194,3],[195,1,195,3],[197,1,197,5],[198,1,198,2],[199,1,199,2],[200,1,200,2],[201,1,201,2],[202,1,202,2],[203,1,203,2],[204,1,204,2],[205,1,205,2],[206,1,206,2],[207,1,207,2],[208,1,208,2],[210,1,210,4],[211,1,214,4]]}
["H. FINANCIAL AID"]
[]
[null,"Please refer to the following financial aid definitions when completing Section H."]
[]
[null,"Awarded aid: The dollar amounts offered to financial aid applicants."]
[null,"Financial aid applicant: Any applicant who submits any one of the institutionally required financial aid applications/forms, such as the FAFSA. "]
[null,"Indebtedness: Aggregate dollar amount borrowed through any loan program (federal, state, subsidized, unsubsidized, private, etc.; excluding parent loans) while the student was enrolled at an institution. Student loans co-signed by a parent are assumed to be the responsibility of the student and should be included."]
[null,"Institutional scholarships and grants: Endowed scholarships, annual gifts and tuition funded grants for which the institution determines the recipient."]
[null,"Financial need: As determined by your institution using the federal methodology and/or your institution's own standards."]
[null,"Need-based aid: College-funded or college-administered award from institutional, state, federal, or other sources for which a student must have financial need to qualify. This includes both institutional and non-institutional student aid (grants, jobs, and loans)."]
[null,"Need-based scholarship or grant aid: Scholarships and grants from institutional, state, federal, or other sources for which a student must have financial need to qualify."]
[null,"Need-based self-help aid: Loans and jobs from institutional, state, federal, or other sources for which a student must demonstrate financial need to qualify."]
[null,"Non-need-based scholarship or grant aid: Scholarships and grants, gifts, or merit-based aid from institutional, state, federal, or other sources (including unrestricted funds or gifts and endowment income) awarded solely on the basis of academic achievement, merit, or any other non-need-based reason. When reporting questions H1 and H2, non-need-based aid that is used to meet need should be counted as need-based aid. "]
[null,"Note: Suggested order of precedence for counting non-need money as need-based:"]
[null,null,"1. Non-need institutional grants","6. Non-need outside grants"]
[null,null,"2. Non-need tuition waivers","7. Non-need student loans"]
[null,null,"3. Non-need athletic awards","8. Non-need parent loans"]
[null,null,"4. Non-need federal grants","9. Non-need work\n \n"]
[null,null,"5. Non-need state grants"]
[null,"Non-need-based self-help aid: Loans and jobs from institutional, state, or other sources for which a student need not demonstrate financial need to qualify."]
[null,"Private student loans: A nonfederal loan made by a lender such as a bank, credit union or private lender used to pay for up to the annual cost of education, less any financial aid received."]
[null,"External scholarships and grants: Scholarships and grants received from outside (private) sources that students bring with them (e.g., Kiwanis, National Merit scholarships). The institution may process paperwork to receive the dollars, but it has no role in determining the recipient or the dollar amount awarded."]
[null,"Work study and employment: Federal and state work study aid, and any employment packaged by your institution in financial aid awards."]
[]
[]
[]
[null,"Aid Awarded to Enrolled Undergraduates"]
[]
["H1","Enter total dollar amounts awarded to enrolled full-time and less than full-time degree-seeking undergraduates (using the same cohort reported in CDS Question B1, “total degree-seeking” undergraduates) in the following categories."]
[null,"•     If the data being reported are final figures for the 2023-2024 academic year (see the next item below), \n      use the 2023-2024 academic year's CDS Question B1 cohort."]
[null,"•     Include aid awarded to international students (i.e., those not qualifying for federal aid). "]
[null,"•     Aid that is non-need-based but that was used to meet need should be reported in the need-based aid \n      column."]
[null,"•     For a suggested order of precedence in assigning categories of aid to cover need, see the entry for “non-need-based scholarship or grant aid” on the last page of the definitions section."]
[]
[]
[{"$nulls":4},"2024-2025 estimated","2023-2024 Final"]
[null,"Indicate the academic year for which data are reported for items H1, H2, H2A, and H6 below:",null,null,{"$f":"'[1]CDS-H'!$C$66","v":"x"}]
[null,"Which needs-analysis methodology does your institution use in awarding institutional aid? (Formerly H3)"]
[]
[null,"Federal methodology (FM)"]
[null,"Institutional methodology (IM)"]
[null,"Both FM and IM"]
[]
[null,"Aid Awarded",null,null,"Need-based\n(Include non-need-based aid use to meet need.)","Non-need-based\n(Exclude non-need-based aid use to meet need.)"]
[null,"Scholarships/Grants"]
[null,"Federal",null,null,{"$f":"'[1]CDS-H'!$C$81","v":{"v":2332889,"d":"$2,332,889"}},{"$f":"'[1]CDS-H'!C97","v":{"v":0,"d":"$0"}},{"$nulls":20},{"$f":"'[1]CDS-H'!N81","v":373}]
[null,"State all states, not only the state in which your institution is located",null,null,{"$f":"'[1]CDS-H'!$C$82","v":{"v":731614,"d":"$731,614"}},{"$f":"'[1]CDS-H'!C98","v":{"v":0,"d":"$0"}},{"$nulls":20},{"$f":"'[1]CDS-H'!N82","v":100}]
[null,"Institutional: Endowed scholarships, annual gifts and tuition funded grants, awarded by the college, excluding athletic aid and tuition waivers (which are reported below).",null,null,{"$f":"'[1]CDS-H'!$C$83","v":{"v":66307821,"d":"$66,307,821"}},{"$f":"'[1]CDS-H'!C99","v":{"v":12193674,"d":"$12,193,674"}},{"$nulls":20},{"$f":"'[1]CDS-H'!N83","v":1248},{"$f":"'[1]CDS-H'!N99","v":635}]
[null,"Scholarships/grants from external sources (e.g. Kiwanis, National Merit) not awarded by the college",null,null,{"$f":"'[1]CDS-H'!$C$84","v":{"v":1211715,"d":"$1,211,715"}},{"$f":"'[1]CDS-H'!C100","v":{"v":787437,"d":"$787,437"}},{"$nulls":20},{"$f":"'[1]CDS-H'!N84","v":194},{"$f":"'[1]CDS-H'!N100","v":63}]
[null,"Total Scholarships/Grants",null,null,{"$f":"SUM(E46:E49)","v":{"v":70584039,"d":"$70,584,039"}},{"v":12981111,"d":"$12,981,111"}]
[null,"Self-Help"]
[null,"Student loans from all sources (excluding parent loans)",null,null,{"$f":"'[1]CDS-H'!$C$87","v":{"v":4538923,"d":"$4,538,923"}},{"$f":"'[1]CDS-H'!$C$103","v":{"v":583253,"d":"$583,253"}},{"$nulls":20},{"$f":"'[1]CDS-H'!$N$87","v":665},{"$f":"'[1]CDS-H'!$N$103","v":87}]
[null,"Federal Work-Study",null,null,{"$f":"'[1]CDS-H'!$C$88","v":{"v":500972,"d":"$500,972"}}]
[null,"State and other (e.g., institutional) work-study/employment (Note: Excludes Federal Work-Study captured above.)",null,null,{"$f":"'[1]CDS-H'!$C$89","v":{"v":4449806,"d":"$4,449,806"}},{"$f":"'[1]CDS-H'!$C$105","v":{"v":177606,"d":"$177,606"}},{"$nulls":20},{"$f":"'[1]CDS-H'!$N$89","v":1175},{"$f":"'[1]CDS-H'!$N$107","v":48}]
[null,"Total Self-Help",null,null,{"$f":"SUM(E52:E54)","v":{"v":9489701,"d":"$9,489,701"}},{"$f":"SUM(F52,F54)","v":{"v":760859,"d":"$760,859"}}]
[null,"Parent Loans",null,null,{"v":0,"d":"$0"},{"$f":"'[1]CDS-H'!$C$107","v":{"v":1496518,"d":"$1,496,518"}},{"$nulls":21},{"$f":"'[1]CDS-H'!$N$107","v":48}]
[null,"Tuition Waivers\nNote: Reporting is optional. Report tuition waivers in this row if you choose to report them. Do not report tuition waivers elsewhere."]
[null,"Athletic Awards",null,null,{"v":0,"d":"$0"}]
[]
["H2","Number of Enrolled Students Awarded Aid: List the number of degree-seeking full-time and less-than-full-time undergraduates who applied for and were awarded financial aid from any source."]
[null,"•     Aid that is non-need-based but that was used to meet need should be counted as need-\n      based aid."]
[null,"•     Numbers should reflect the cohort awarded the dollars reported in H1."]
[null,"•     In the chart below, students may be counted in more than one row, and full-time first-year students\n      should also be counted as full-time undergraduates."]
[]
[]
[null,null,"Number of Enrolled Students Awarded Aid","First-time Full-time First-year Students","Full-time Undergrad \n(Incl. First-Year)","Less Than\nFull-time\nUndergrad"]
[null,"A","Number of degree-seeking undergraduate students (CDS Item B1 if reporting on Fall 2024 cohort)",{"$f":"'[1]CDS-H'!C126","v":560},{"$f":"'[1]CDS-H'!C144","v":2099}]
[null,"B","Number of students in line a who applied for need-based financial aid",{"$f":"'[1]CDS-H'!C127","v":357},{"$f":"'[1]CDS-H'!C145","v":1400}]
[null,"C","Number of students in line b who were determined to have financial need",{"$f":"'[1]CDS-H'!C128","v":311},{"$f":"'[1]CDS-H'!C146","v":1248}]
[null,"D","Number of students in line c who were awarded any financial aid",{"$f":"'[1]CDS-H'!C129","v":311},{"$f":"'[1]CDS-H'!C147","v":1248}]
[null,"E","Number of students in line d who were awarded any need-based scholarship or grant aid",{"$f":"'[1]CDS-H'!C130","v":308},{"$f":"'[1]CDS-H'!C148","v":1239}]
[null,"F","Number of students in line d who were awarded any need-based self-help aid",{"$f":"'[1]CDS-H'!C131","v":258},{"$f":"'[1]CDS-H'!C149","v":1112}]
[null,"G","Number of students in line d who were awarded any non-need-based scholarship or grant aid",{"$f":"'[1]CDS-H'!C132","v":44},{"$f":"'[1]CDS-H'!C150","v":106}]
[null,"H","Number of students in line d whose need was fully met (exclude PLUS loans, unsubsidized loans, and private alternative loans)",{"$f":"'[1]CDS-H'!C133","v":230},{"$f":"'[1]CDS-H'!C151","v":743}]
[null,"I","On average, the percentage of need that was met of students who were awarded any need-based aid. Exclude any aid that was awarded in excess of need as well as any resources that were awarded to replace EFC (PLUS loans, unsubsidized loans, and private alternative loans)",{"$f":"'[1]CDS-H'!$C$135","v":{"v":1.01,"d":"101%"}},{"$f":"'[1]CDS-H'!$C$153","v":{"v":0.97,"d":"97%"}}]
[null,"J","The average financial aid package of those in line d. Exclude any resources that were awarded to replace EFC (PLUS loans, unsubsidized loans, and private alternative loans)",{"$f":"'[1]CDS-H'!C137","v":{"v":66010.34405144694,"d":"66,010"}},{"$f":"'[1]CDS-H'!C155","v":{"v":65169.824519230766,"d":"$   65,170"}}]
[null,"K","Average need-based scholarship and grant award of those in line e",{"$f":"'[1]CDS-H'!C138","v":{"v":59729.84090909091,"d":"59,730"}},{"$f":"'[1]CDS-H'!C156","v":{"v":56396.67473769169,"d":"$   56,397"}}]
[null,"L","Average need-based self-help award (excluding PLUS loans, unsubsidized loans, and private alternative loans) of those in line f",{"$f":"'[1]CDS-H'!C139","v":{"v":7405.794573643411,"d":"7,406"}},{"$f":"'[1]CDS-H'!C157","v":{"v":9727.78417266187,"d":"$   9,728"}}]
[null,"M","Average need-based loan (excluding PLUS loans, unsubsidized loans, and private alternative loans) of those in line f who were awarded a need-based loan",{"$f":"'[1]CDS-H'!C140","v":{"v":4155.934108527132,"d":"4,156"}},{"$f":"'[1]CDS-H'!C158","v":{"v":5863.318345323741,"d":"$   5,863"}}]
[]
["H2A","Number of Enrolled Students Awarded Non-need-based Scholarships and Grants: List the number of degree-seeking full-time and less-than-full-time undergraduates who had no financial need and who were awarded institutional non-need-based scholarship or grant aid."]
[null,"•     Numbers should reflect the cohort awarded the dollars reported in H1."]
[null,"•     In the chart below, students may be counted in more than one row, and full-time first-year students should also be \n      counted as full-time undergraduates."]
[]
[null,null,"Number of Enrolled Students Awarded Non-need-based Scholarships and Grants","First-time\nFull-time\nFirst-year Students","Full-time\nUndergrad\n(Incl. First-year.)","Less Than\nFull-time\nUndergrad"]
[null,"N","Number of students in line a who had no financial need and who were awarded institutional non-need-based scholarship or grant aid (exclude those who were awarded athletic awards and tuition benefits)",{"$f":"'[1]CDS-H'!$C$193","v":199},{"$f":"'[1]CDS-H'!$C$202","v":628}]
[null,"O","Average dollar amount of institutional non-need-based scholarship and grant aid awarded to students in line n",{"$f":"'[1]CDS-H'!$C$195","v":{"v":18937,"d":"$   18,937"}},{"$f":"'[1]CDS-H'!$C$204","v":{"v":19291.323248407643,"d":"$   19,291"}}]
[null,"P","Number of students in line a who were awarded an institutional non-need-based athletic scholarship or grant",{"$f":"'[1]CDS-H'!$C$197","v":0},{"$f":"'[1]CDS-H'!$C$206","v":0}]
[null,"Q","Average dollar amount of institutional non-need-based athletic scholarships and grants awarded to students in line p",{"$f":"'[1]CDS-H'!$C$199","v":0},{"$f":"'[1]CDS-H'!$C$208","v":0}]
[]
[null,null,"Note: These are the graduates and loan types to include and exclude in order to fill out CDS H4 and H5. "]
[null,null,"Include:"]
[null,null,"•     2024 undergraduate class: all students who started at your institution as first-time students and received a bachelor's degree between July 1, 2023 and June 30, 2024."]
[null,null,"•     Only loans made to students who borrowed while enrolled at your institution."]
[null,null,"•     Co-signed loans."]
[null,null,"Exclude"]
[null,null,"•     Students who transferred in."]
[null,null,"•     Money borrowed at other institutions."]
[null,null,"•     Parent loans"]
[null,null,"•     Students who did not graduate or who graduated with another degree or certificate (but no \n      bachelor’s degree)."]
[]
[]
["H4","Provide the number of students in the 2024 undergraduate class who started at your institution as first-time students and received a bachelor's degree between July 1, 2023 and June 30, 2024. Exclude students who transferred into your institution.",{"$nulls":3},{"$f":"'[1]CDS-H'!$C$236","v":513}]
[]
["H5. Number and percent of students in class (defined in H4 above) borrowing from federal, non-federal, and any loan sources, and the average (or mean) amount borrowed."]
["•     The “Average per-undergraduate-borrower cumulative principal borrowed,” is designed to provide better \n      information about student borrowing from federal and nonfederal (institutional, state, commercial) sources. "]
["•    The numbers, percentages, and averages for each row should be based only on the loan source specified for \n      the particular row. For example, the federal loans average (row b) should only be the cumulative average of \n      federal loans and the private loans average (row e) should only be the cumulative average of private loans. "]
[null,"Source/Type of Loan",null,"Number in the class (defined in H4 above) who borrowed from the types of loans specified in the first column","Percent of the class (defined above) who borrowed from the types of loans specified in the first column (nearest 1%)","Average per-undergraduate-borrower cumulative principal borrowed from the types of loans specified in the first column (nearest $1)"]
[]
[null,"A","Any loan program: Federal Perkins, Federal Stafford Subsidized and Unsubsidized, institutional, state, private loans that your institution is aware of, etc. Include both Federal Direct Student Loans and Federal Family Education Loans.",{"$f":"'[1]CDS-H'!C252","v":267},{"$f":"'[1]CDS-H'!C260","v":{"v":0.52046783625731,"d":"52.05%"}},{"$f":"'[1]CDS-H'!$C268","v":{"v":24601,"d":"$24,601"}}]
[null,"B","Federal loan programs: Federal Perkins, Federal Stafford Subsidized and Unsubsidized. Include both Federal Direct Student Loans and Federal Family Education Loans.",{"$f":"'[1]CDS-H'!C253","v":215},{"$f":"'[1]CDS-H'!C261","v":{"v":0.4191033138401559,"d":"41.91%"}},{"$f":"'[1]CDS-H'!$C269","v":{"v":18700,"d":"$18,700"}}]
[null,"C","Institutional loan programs.",{"$f":"'[1]CDS-H'!C254","v":157},{"$f":"'[1]CDS-H'!C262","v":{"v":0.3060428849902534,"d":"30.60%"}},{"$f":"'[1]CDS-H'!$C270","v":{"v":10207,"d":"$10,207"}}]
[null,"D","State loan programs.",{"$f":"'[1]CDS-H'!C255","v":4},{"$f":"'[1]CDS-H'!C263","v":{"v":0.007797270955165692,"d":"0.78%"}},{"$f":"'[1]CDS-H'!$C271","v":{"v":16982,"d":"$16,982"}}]
[null,"E","Private student loans made by a bank or lender.",{"$f":"'[1]CDS-H'!C256","v":23},{"$f":"'[1]CDS-H'!C264","v":{"v":0.04483430799220273,"d":"4.48%"}},{"$f":"'[1]CDS-H'!$C272","v":{"v":38156,"d":"$38,156"}}]
[]
[null,"Aid to Undergraduate Degree-seeking Nonresidents"]
[null,null,"•     Report numbers and dollar amounts for the same academic year checked in item H1"]
[]
["H6","Indicate your institution’s policy regarding institutional scholarship and grant aid for undergraduate degree-seeking nonresidents:"]
[]
[{"$f":"'[1]CDS-H'!$C280","v":"x"},"Institutional need-based scholarship or grant aid is available"]
[{"$f":"'[1]CDS-H'!$C281","v":"x"},"Institutional non-need-based scholarship or grant aid is available"]
[null,"Institutional scholarship or grant aid is not available"]
[]
[null,"If institutional financial aid is available for undergraduate degree-seeking nonresidents, provide the number of undergraduate degree-seeking nonresidents who were awarded need-based or non-need-based aid:",{"$nulls":3},{"$f":"'[1]CDS-H'!$C$285","v":255}]
[]
[null,"Average dollar amount of institutional financial aid awarded to undergraduate degree-seeking nonresidents:",{"$nulls":3},{"$f":"'[1]CDS-H'!$C$288","v":{"v":60806,"d":"$60,806"}}]
[]
[null,"Total dollar amount of institutional financial aid awarded to undergraduate degree-seeking nonresidents:",{"$nulls":3},{"$f":"'[1]CDS-H'!$C$291","v":{"v":15505530,"d":"$15,505,530"}}]
[]
["H7","Check off all financial aid forms nonresident first-year financial aid applicants must submit:"]
[]
[null,"Institution’s own financial aid form"]
[{"$f":"'[1]CDS-H'!$C$299","v":"x"},"CSS/Financial Aid PROFILE"]
[{"$f":"'[1]CDS-H'!$C$301","v":"x"},"Other (specify):"]
[null,{"$f":"'[1]CDS-H'!$B$302","v":"CSS Profile or ISAFA"}]
[]
[null,"Process for First-Year Students"]
[]
["H8","Check off all financial aid forms domestic first-year financial aid applicants must submit:"]
[]
[{"$f":"'[1]CDS-H'!$C$310","v":"x"},"FAFSA"]
[null,"Institution's own financial aid form"]
[{"$f":"'[1]CDS-H'!$C$312","v":"x"},"CSS PROFILE"]
[null,"State aid form"]
["x","Noncustodial PROFILE"]
[null,"Business/Farm Supplement"]
[{"$f":"'[1]CDS-H'!$C$317","v":"x"},"Other (specify):"]
[null,{"$f":"'[1]CDS-H'!$B$318","v":"Parent tax documents"}]
[]
["H9","Indicate filing dates for first-year students:"]
[null,null,"Priority date for filing required financial aid forms:"]
[null,null,"Deadline for filing required financial aid forms:",{"$f":"'[1]CDS-H'!$C$325","v":"1/22 Regular Decision"}]
[]
[null,null,"No deadline for filing required forms (applications processed on a rolling basis)"]
[]
[]
["H10","Indicate notification dates for first-year students (answer a or b):"]
[]
[null,null,"a) Students notified on or about (date): "]
[null,null,{"$f":"'[1]CDS-H'!$C$333","v":"3/16 Regular Decision"}]
[]
[null,null,"b) Students notified on a rolling basis:"]
[null,null,"Yes"]
[null,null,"No"]
[null,null,"If yes, starting date:"]
[]
[]
["H11","Indicate reply dates:"]
[null,"Students must reply by (date): ",null,{"$f":"'[1]CDS-H'!$C$347","v":"2024-05-01"}]
[null,"or within _______ weeks of notification."]
[]
[null,"Types of Aid Available"]
[null,"Please check off all types of aid available to undergraduates at your institution:"]
["H12","Loans"]
[]
["x","Federal Direct Subsidized Loans"]
["x","Federal Direct Unsubsidized Loans"]
["x","Federal Direct PLUS Loans"]
[null,"Federal Nursing Loans"]
["x","State Loans"]
["x","College/university loans from institutional funds"]
[null,"Other (specify):"]
[]
[]
["H13","Need Based Scholarships and Grants"]
[]
["x","Federal Pell"]
["x","Federal SEOG"]
["x","State scholarships/grants"]
["x","Private scholarships"]
["x","College/university scholarship or grant aid from institutional funds"]
[null,"United Negro College Fund"]
[null,"Federal Nursing Scholarship"]
[null,"Other (specify):"]
[]
[]
["H14","Check off criteria used in awarding institutional aid. Check all that apply."]
[{"$nulls":3},"Non-Need Based","Need-Based"]
[null,"Academics",null,"x"]
[null,"Alumni affiliation"]
[null,"Art"]
[null,"Athletics"]
[null,"Job skills"]
[null,"ROTC"]
[null,"Leadership"]
[null,"Music/drama"]
[null,"Religious affiliation"]
[null,"State/district residency"]
[]
["H15","If your institution has recently implemented any major financial aid policy, program, or initiative to make your institution more affordable to incoming students such as replacing loans with grants, or waiving costs for families below a certain income level please provide details below:"]

{"sheet":"CDS-I","index":8,"n_rows":52,"n_cols":11,"rows_kept":52,"merged":[[0,0,0,10],[2,1,2,10],[3,1,3,10],[5,2,5,8],[6,2,6,8],[7,2,7,8],[8,2,8,8],[9,2,9,8],[10,2,10,8],[11,2,11,8],[13,1,13,10],[14,1,14,10],[15,1,15,10],[16,1,16,10],[17,1,17,10],[19,1,19,7],[20,2,20,7],[21,2,21,7],[22,2,22,7],[23,2,23,7],[24,2,24,7],[25,2,25,7],[26,2,26,7],[27,2,27,7],[28,2,28,7],[29,2,29,7],[31,1,31,10],[32,1,32,10],[33,1,33,10],[35,1,35,5],[37,1,37,10],[38,1,38,10],[39,1,39,10],[40,1,40,10],[41,1,41,10],[42,1,42,10],[44,1,44,10],[46,1,46,10],[47,1,47,2],[48,1,48,2],[49,1,49,2],[50,1,50,2],[51,1,51,2]]}
["I. INSTRUCTIONAL FACULTY AND CLASS SIZE"]
[]
["I-1.","Please report the number of instructional faculty members in each category for Fall 2024. Include faculty who are on your institution’s payroll on the census date your institution uses for IPEDS/AAUP."]
[null,"The following definition of full-time instructional faculty is used by the American Association of University Professors (AAUP) in its annual Faculty Compensation Survey (the part time definitions are not used by AAUP). Instructional Faculty is defined as those members of the instructional-research staff whose major regular assignment is instruction, including those with released time for research. Use the chart below to determine inclusions and exclusions:"]
[{"$nulls":9},"Full-time","Part-time"]
[null,"A","Instructional faculty in preclinical and clinical medicine, faculty who are not paid (e.g., those who donate their services or are in the military), or research-only faculty, post-doctoral fellows, or pre-doctoral fellows",{"$nulls":6},"Exclude","Include only if they teach one or more non-clinical credit courses"]
[null,"B","Administrative officers with titles such as dean of students, librarian, registrar, coach, and the like, even though they may devote part of their time to classroom instruction and may have faculty status",{"$nulls":6},"Exclude","Include if they teach one or more non-clinical credit courses"]
[null,"C","Other administrators/staff who teach one or more non-clinical credit courses even though they do not have faculty status",{"$nulls":6},"Exclude","Include"]
[null,"D","Undergraduate or graduate students who assist in the instruction of courses, but have titles such as teaching assistant, teaching fellow, and the like",{"$nulls":6},"Exclude","Exclude"]
[null,"E","Faculty on sabbatical or leave with pay",{"$nulls":6},"Include","Exclude"]
[null,"F","Faculty on leave without pay",{"$nulls":6},"Exclude","Exclude"]
[null,"G","Replacement faculty for faculty on sabbatical leave or leave with pay",{"$nulls":6},"Exclude","Include"]
[]
[null,"Full-time instructional faculty: faculty employed on a full-time basis for instruction (including those with released time for research)"]
[null,"Part-time instructional faculty: Adjuncts and other instructors being paid solely for part-time classroom instruction. Also includes full-time faculty teaching less than two semesters, three quarters, two trimesters, or two four-month sessions. Employees who are not considered full-time instruction faculty but who teach one or more non-clinical credit courses may be counted as part-time faculty."]
[null,"Minority faculty: includes faculty who designate themselves as Black, non-Hispanic; American Indian or Alaska Native; Asian, Native Hawaiian or other Pacific Islander, or Hispanic. "]
[null,"Doctorate: includes such degrees as Doctor of Philosophy, Doctor of Education, Doctor of Juridical Science, and Doctor of Public Health in any field such as arts, sciences, education, engineering, business, and public administration. Also includes terminal degrees formerly designated as “first professional,” including dentistry (DDS or DMD), medicine (MD), optometry (OD), osteopathic medicine (DO), pharmacy (DPharm or BPharm), podiatric medicine (DPM), veterinary medicine (DVM), chiropractic (DC or DCM), or law (JD).  "]
[null,"Terminal master’s degree: a master’s degree that is considered the highest degree in a field: example, M. Arch (in architecture) and MFA (master of fine arts in art or theater)."]
[]
["I-1.",{"$nulls":7},"Full-Time","Part-Time","Total"]
[null,"A","Total number of instructional faculty",{"$nulls":5},198,50,248]
[null,"B","Total number who are members of minority groups",{"$nulls":5},69,12,81]
[null,"C","Total number who are women",{"$nulls":5},113,29,142]
[null,"D","Total number who are men",{"$nulls":5},85,21,106]
[null,"E","Total number who are nonresidents (international)",{"$nulls":5},9,0,9]
[null,"F","Total number with doctorate, or other terminal degree",{"$nulls":5},180,25,205]
[null,"G","Total number whose highest degree is a master’s but not a terminal master’s",{"$nulls":5},12,9,21]
[null,"H","Total number whose highest degree is a bachelor’s",{"$nulls":5},6,14,20]
[null,"I","Total number whose highest degree is unknown or other (Note: Items f, g, h, and i must sum up to item a.)",{"$nulls":5},0,2,2]
[null,"J","Total number in stand-alone graduate/professional programs in which faculty teach virtually only graduate-level students",{"$nulls":5},0,0,0]
[]
["I-2.","Student to Faculty Ratio"]
[null,"Report the Fall 2024 ratio of full-time equivalent students (full-time plus 1/3 part time) to full-time equivalent instructional faculty (full time plus 1/3 part time). In the ratio calculations, exclude both faculty and students in stand-alone graduate or professional programs such as medicine, law, veterinary, dentistry, social work, business, or public health in which faculty teach virtually only graduate level students."]
[null,"• Do not count undergraduate or graduate student teaching assistants as faculty."]
[]
[null,"Fall 2024 Student to Faculty ratio",{"$nulls":4},10,"to 1","(based on",214.67,"students"]
[{"$nulls":8},"and",2116.67,"faculty)."]
["I-3. ","Undergraduate Class Size"]
[null,"In the table below, please use the following definitions to report information about the size of classes and class sections offered in the Fall 2024 term."]
[]
[null,"Class Sections:  A class section is an organized course offered for credit, identified by discipline and number, meeting at a stated time or times in a classroom or similar setting, and not a subsection such as a laboratory or discussion session. Undergraduate class sections are defined as any sections in which at least one degree-seeking undergraduate student is enrolled for credit. Exclude distance learning classes and noncredit classes and individual instruction such as dissertation or thesis research, music instruction, or one-to-one readings. Exclude students in independent study, co-operative programs, internships, foreign language taped tutor sessions, practicums, and all students in one-on-one classes. Each class section should be counted only once and should not be duplicated because of course catalog cross-listings."]
[null,"Class Subsections:  A class subsection includes any subsection of a course, such as laboratory, recitation, and discussion subsections that are supplementary in nature and are scheduled to meet separately from the lecture portion of the course. Undergraduate subsections are defined as any subsections of courses in which degree-seeking undergraduate students enrolled for credit. As above, exclude noncredit classes and individual instruction such as dissertation or thesis research, music instruction, or one-to-one readings. Each class subsection should be counted only once and should not be duplicated because of cross-listings."]
[null,"Using the above definitions, please report for each of the following class-size intervals the number of class sections and class subsections offered in Fall 2024. For example, a lecture class with 800 students who met at another time in 40 separate labs with 20 students should be counted once in the “100+” column in the class section column and 40 times under the “20-29” column of the class subsections table. "]
[]
[null,"Number of Class Sections with Undergraduates Enrolled"]
[]
[null,"Undergraduate Class Size (provide numbers)"]
[{"$nulls":3},"2-9","10-19","20-29","30-39","40-49","50-99","100+","Total"]
[null,"CLASS SECTIONS",null,89,243,123,22,1,1,0,{"$f":"SUM(D49:J49)","v":479}]
[]
[{"$nulls":3},"2-9","10-19","20-29","30-39","40-49","50-99","100+","Total"]
[null,"CLASS SUB-SECTIONS",null,69,55,12,6,0,0,0,{"$f":"SUM(D52:J52)","v":142}]

{"sheet":"CDS-J","index":9,"n_rows":45,"n_cols":6,"rows_kept":45,"merged":[[0,0,0,5],[3,1,3,5]]}
["J. Disciplinary areas of DEGREES CONFERRED"]
[]
["J1","Degrees conferred between July 1, 2023 and June 30, 2024"]
[null,"For each of the following discipline areas, provide the percentage of diplomas/certificates, associate, and bachelor’s degrees awarded. To determine the percentage, use majors, not headcount (e.g., students with one degree but a double major will be represented twice). Calculate the percentage from your institution’s IPEDS Completions by using the sum of 1st and 2nd majors for each CIP code as the numerator and the sum of the Grand Total by 1st Majors and the Grand Total by 2nd major as the denominator. If you prefer, you can compute the percentages using 1st majors only."]
[null,"Category","Diploma/Certificates","Associate","Bachelor’s","CIP 2020 Categories to Include"]
[null,"Agriculture",{"$nulls":3},"01"]
[null,"Natural resources and conservation",null,null,{"v":0.0494,"d":"4.94%"},"03"]
[null,"Architecture",{"$nulls":3},"04"]
[null,"Area, ethnic, and gender studies",null,null,{"v":0.016,"d":"1.60%"},"05"]
[null,"Communication/journalism",null,null,{"v":0.0189,"d":"1.89%"},"09"]
[null,"Communication technologies",{"$nulls":3},10]
[null,"Computer and information sciences",null,null,{"v":0.0741,"d":"7.41%"},11]
[null,"Personal and culinary services",{"$nulls":3},12]
[null,"Education",null,null,{"v":0.0189,"d":"1.89%"},13]
[null,"Engineering",{"$nulls":3},14]
[null,"Engineering technologies",{"$nulls":3},15]
[null,"Foreign languages, literatures, and linguistics",null,null,{"v":0.0843,"d":"8.43%"},16]
[null,"Family and consumer sciences",{"$nulls":3},19]
[null,"Law/legal studies",{"$nulls":3},22]
[null,"English",null,null,{"v":0.0538,"d":"5.38%"},23]
[null,"Liberal arts/general studies",{"$nulls":3},24]
[null,"Library science",{"$nulls":3},25]
[null,"Biological/life sciences",null,null,{"v":0.109,"d":"10.90%"},26]
[null,"Mathematics and statistics",null,null,{"v":0.0582,"d":"5.82%"},27]
[null,"Military science and military technologies",{"$nulls":3},"28 & 29"]
[null,"Interdisciplinary studies",null,null,{"v":0.1323,"d":"13.23%"},30]
[null,"Parks and recreation",{"$nulls":3},31]
[null,"Philosophy and religious studies",null,null,{"v":0.0174,"d":"1.74%"},38]
[null,"Theology and religious vocations",{"$nulls":3},39]
[null,"Physical sciences",null,null,{"v":0.0349,"d":"3.49%"},40]
[null,"Science technologies",{"$nulls":3},41]
[null,"Psychology",null,null,{"v":0.0756,"d":"7.56%"},42]
[null,"Homeland Security, law enforcement, firefighting, and protective services",{"$nulls":3},43]
[null,"Public administration and social services",{"$nulls":3},44]
[null,"Social sciences ",null,null,{"v":0.1773,"d":"17.73%"},45]
[null,"Construction trades",{"$nulls":3},46]
[null,"Mechanic and repair technologies",{"$nulls":3},47]
[null,"Precision production",{"$nulls":3},48]
[null,"Transportation and materials moving",{"$nulls":3},49]
[null,"Visual and performing arts",null,null,{"v":0.0494,"d":"4.94%"},50]
[null,"Health professions and related programs",{"$nulls":3},51]
[null,"Business/marketing",{"$nulls":3},52]
[null,"History",null,null,{"v":0.0305,"d":"3.05%"},54]
[null,"Other"]
[null,"TOTAL (should = 100%)",{"$f":"SUM(C6:C44)","v":{"v":0,"d":"0.00%"}},{"v":0,"d":"0.00%"},{"v":1,"d":"100.00%"}]

{"sheet":"CDS Definitions","index":10,"n_rows":190,"n_cols":1,"rows_kept":190}
["Common Data Set Definitions"]
["¨        All definitions related to the financial aid section appear at the end of the Definitions document."]
[]
["¨        Items preceded by an asterisk (*) represent definitions agreed to among publishers which do not appear on the CDS document but may be present on individual publishers’ surveys. "]
[]
["¨        Additional guidance for some terms, particularly those common with the IPEDS survey, may be found here:  https://surveys.nces.ed.gov/ipeds/public/glossary"]
[]
["*Academic advisement: Plan under which each student is assigned to a faculty member or a trained adviser, who, through regular meetings, helps the student plan and implement immediate and long-term academic and vocational goals."]
["Accelerated program: Completion of a college program of study in fewer than the usual number of years, most often by attending summer sessions and carrying extra courses during the regular academic term."]
["Admitted student: Applicant who is offered admission to a degree-granting program at your institution."]
[]
["*Adult student services: Admission assistance, support, orientation, and other services expressly for adults who have started college for the first time, or who are re-entering after a lapse of a few years."]
["American Indian or Alaska Native: A person having origins in any of the original peoples of North and South America (including Central America) and maintaining tribal affiliation or community attachment."]
["Applicant (first-time, first year): An individual who has fulfilled the institution’s requirements to be considered for admission (including payment or waiving of the application fee, if any) and who has been notified of one of the following actions: admission, nonadmission, placement on waiting list, or application withdrawn (by applicant or institution)."]
["Application fee: That amount of money that an institution charges for processing a student’s application for acceptance. This amount is not creditable toward tuition and required fees, nor is it refundable if the student is not admitted to the institution."]
["Asian: A person having origins in any of the original peoples of the Far East, Southeast Asia, or the Indian subcontinent, including, for example, Cambodia, China, India, Japan, Korea, Malaysia, Pakistan, the Philippine Islands, Thailand, and Vietnam."]
["Associate degree: An award that normally requires at least two but less than four years of full-time equivalent college work."]
["Bachelor’s degree: An award (baccalaureate or equivalent degree, as determined by the Secretary of the U.S. Department of Education) that normally requires at least four years but not more than five years of full-time equivalent college-level work. This includes ALL bachelor’s degrees conferred in a five-year cooperative (work-study plan) program. (A cooperative plan provides for alternate class attendance and employment in business, industry, or government; thus, it allows students to combine actual work experience with their college studies.) Also, it includes bachelor’s degrees in which the normal four years of work are completed in three years."]
["Black or African American: A person having origins in any of the black racial groups of Africa."]
["Board (charges): Assume average cost for 19 meals per week or the maximum meal plan."]
["Books and supplies (costs): Average cost of books and supplies. Do not include unusual costs for special groups of students (e.g., engineering or art majors), unless they constitute the majority of students at your institution."]
["Calendar system: The method by which an institution structures most of its courses for the academic year."]
["Campus Ministry: Religious student organizations (denominational or nondenominational) devoted to fostering religious life on college campuses. May also refer to Campus Crusade for Christ, an interdenominational Christian organization."]
[]
["*Career and placement services: A range of services, including (often) the following: coordination of visits of employers to campus; aptitude and vocational testing; interest inventories, personal counseling; help in resume writing, interviewing, launching the job search; listings for those students desiring employment and those seeking permanent positions; establishment of a permanent reference folder; career resource materials."]
["Carnegie units: One year of study or the equivalent in a secondary school subject."]
["Certificate: See Postsecondary award, certificate, or diploma."]
["Class rank: The relative numerical position of a student in his or her graduating class, calculated by the high school on the basis of grade-point average, whether weighted or unweighted."]
["College-preparatory program: Courses in academic subjects (English, history and social studies, foreign languages, mathematics, science, and the arts) that stress preparation for college or university study. "]
["Common Application: The standard application form distributed by the National Association of Secondary School Principals for a large number of private colleges who are members of the Common Application Group. "]
["*Community service program: Referral center for students wishing to perform volunteer work in the community or participate in volunteer activities coordinated by academic departments."]
["Commuter: A student who lives off campus in housing that is not owned by, operated by, or affiliated with the college. This category includes students who commute from home and students who have moved to the area to attend college. "]
["Comprehensive transition and postsecondary program for students with intellectual disabilities: Programs designed to support postsecondary students with intellectual disabilities obtain instruction in academic, career and technical, and independent living  subjects in preparation for employment."]
["Clock hour: A unit of measure that represents an hour of scheduled instruction given to students. Also referred to as contact hour."]
["Continuous basis (for program enrollment): A calendar system classification that is used by institutions that enroll students at any time during the academic year. For example, a cosmetology school or a word processing school might allow students to enroll and begin studies at various times, with no requirement that classes begin on a certain date."]
["Cooperative education program: A program that provides for alternate class attendance and employment in business, industry, or government."]
["Cooperative housing: College-owned, -operated, or -affiliated housing in which students share food and housing expenses and participate in household chores to reduce living expenses."]
["*Counseling service: Activities designed to assist students in making plans and decisions related to their education, career, or personal development."]
["Credit: Recognition of attendance or performance in an instructional activity (course or program) that can be applied by a recipient toward the requirements for a degree, diploma, certificate, or recognized postsecondary credential."]
["Credit course: A course that, if successfully completed, can be applied toward the number of courses required for achieving a degree, diploma, certificate, or other recognized postsecondary credential."]
["Credit hour: A unit of measure representing an hour (50 minutes) of instruction over a 15-week period in a semester or trimester system or a 10-week period in a quarter system. It is applied toward the total number of hours needed for completing the requirements of a degree, diploma, certificate, or recognized postsecondary credential."]
["Cross-registration: A system whereby students enrolled at one institution may take courses at another institution without having to apply to the second institution."]
["Deferred admission: The practice of permitting admitted students to postpone enrollment, usually for a period of one academic term or one year."]
["Degree: An award conferred by a college, university, or other postsecondary education institution as official recognition for the successful completion of a program of studies."]
["Degree-seeking students: Students enrolled in courses for credit who are recognized by the institution as seeking a degree or recognized postsecondary credential. At the undergraduate level, this is intended to include students enrolled in vocational or occupational programs."]
["*Developmental services: Instructional courses designed for students deficient in the general competencies necessary for a regular postsecondary curriculum and educational setting."]
["Differs by program (calendar system): A calendar system classification that is used by institutions that have occupational/vocational programs of varying length. These schools may enroll students at specific times depending on the program desired. For example, a school might offer a two-month program in January, March, May, September, and November; and a three-month program in January, April, and October."]
["Diploma: See Postsecondary award, certificate, or diploma."]
["Distance learning: An option for earning course credit at off-campus locations via cable television, internet, satellite classes, videotapes, correspondence courses, or other means."]
["Doctor’s degree-research/scholarship: A Ph.D. or other doctor's degree that requires advanced work beyond the master’s level, including the preparation and defense of a dissertation based on original research, or the planning and execution of an original project demonstrating substantial artistic or scholarly achievement. Some examples of this type of degree may include Ed.D., D.M.A., D.B.A., D.Sc., D.A., or D.M, and others, as designated by the awarding institution."]
["Doctor’s degree-professional practice: A doctor’s degree that is conferred upon completion of a program providing the knowledge and skills for the recognition, credential, or license required for professional practice. The degree is awarded after a period of study such that the total time to the degree, including both pre-professional and professional preparation, equals at least six full-time equivalent academic years. Some of these degrees were formerly classified as “first-professional” and may include: Chiropractic (D.C. or D.C.M.); Dentistry (D.D.S. or D.M.D.); Law (L.L.B. or J.D.); Medicine (M.D.); Optometry (O.D.); Osteopathic Medicine (D.O); Pharmacy (Pharm.D.); Podiatry (D.P.M., Pod.D., D.P.); or, Veterinary Medicine (D.V.M.), and others, as designated by the awarding institution."]
["Doctor’s degree-other: A doctor’s degree that does not meet the definition of a doctor’s degree - research/scholarship or a doctor’s degree - professional practice."]
["Double major: Program in which students may complete two undergraduate programs of study simultaneously."]
["Dual enrollment: Refers to high school students enrolled in college courses for credit. In accordance with IPEDS, student performance is recorded on a college transcript and postsecondary credit is awarded for a passing grade in the course. Dual enrollment includes: All postsecondary courses, independent of course delivery mode, course location, course instructor, whether secondary credit is also offered, and whether the student enrolls through a formal state/local program or enrolls outside a formal state/local program. Dual enrollment excludes: Credit-by-exam models such as Advanced Placement (AP) and International Baccalaureate (IB) in which the student is not enrolled in a postsecondary institution."]
["Early action plan: An admission plan that allows students to apply and be notified of an admission decision well in advance of the regular notification dates. If admitted, the candidate is not committed to enroll; the student may reply to the offer under the college’s regular reply policy."]
["Early admission: A policy under which students who have not completed high school are admitted and enroll full time in college, usually after completion of their junior year."]
["Early decision plan: A plan that permits students to apply and be notified of an admission decision (and financial aid offer if applicable) well in advance of the regular notification date. Applicants agree to accept an offer of admission and, if admitted, to withdraw their applications from other colleges. There are three possible decisions for early decision applicants: admitted, denied, or not admitted but forwarded for consideration with the regular applicant pool, without prejudice."]
["English as a Second Language (ESL): A course of study designed specifically for students whose native language is not English."]
["Exchange student program-domestic: Any arrangement between a student and a college that permits study for a semester or more at another college in the United States without extending the amount of time required for a degree. See also Study abroad."]
["External degree program: A program of study in which students earn credits toward a degree through independent study, college courses, proficiency examinations, and personal experience. External degree programs require minimal or no classroom attendance."]
["Extracurricular activities (as admission factor): Special consideration in the admissions process given for participation in both school and nonschool-related activities of interest to the college, such as clubs, hobbies, student government, athletics, performing arts, etc."]
["First-time student: A student attending any institution for the first time at the level enrolled. Includes students enrolled in the fall term who attended a postsecondary institution for the first time at the same level in the prior summer term. Also includes students who entered with advanced standing (college credit earned before graduation from high school)."]
["First-time, first-year student: A student attending any institution for the first time at the undergraduate level. Includes students enrolled in the fall term who attended college for the first time in the prior summer term. Also includes students who entered with advanced standing (college credits earned before graduation from high school)."]
["First-year student: A student who has completed less than the equivalent of 1 full year of undergraduate work; that is, less than 30 semester hours (in a 120-hour degree program) or less than 900 clock hours."]
["Food and housing (charges)—on campus: Assume double occupancy in institutional housing and 19 meals per week (or maximum meal plan)."]
["Full-time student (undergraduate): A student enrolled for 12 or more semester credits, 12 or more quarter credits, or 24 or more clock hours a week each term."]
["Geographical residence (as admission factor): Special consideration in the admission process given to students from a particular region, state, or country of residence."]
["Grade-point average (academic high school GPA): The sum of grade points a student has earned in secondary school divided by the number of courses taken. The most common system of assigning numbers to grades counts four points for an A, three points for a B, two points for a C, one point for a D, and no points for an E or F. Unweighted GPA’s assign the same weight to each course. Weighting gives students additional points for their grades in advanced or honors courses."]
["Graduate student: A student who holds a bachelor’s or equivalent, and is taking courses at the post-baccalaureate level."]
["*Health services: Free or low cost on-campus primary and preventive health care available to students."]
["High school diploma or recognized equivalent: A document certifying the successful completion of a prescribed secondary school program of studies, or the attainment of satisfactory scores on the Tests of General Educational Development (GED), or another state-specified examination."]
["Hispanic or Latino: A person of Mexican, Puerto Rican, Cuban, South or Central American, or other Spanish culture or origin, regardless of race."]
["Honors program: Any special program for very able students offering the opportunity for educational enrichment, independent study, acceleration, or some combination of these. "]
["Independent study: Academic work chosen or designed by the student with the approval of the department concerned, under an instructor’s supervision, and usually undertaken outside of the regular classroom structure."]
["In-state tuition: The tuition charged by institutions to those students who meet the state’s or institution’s residency requirements."]
["International student: See Nonresident."]
["International student group: Student groups that facilitate cultural dialogue, support a diverse campus, assist international students in acclimation and creating a social network. "]
["Internship: Any short-term, supervised work experience usually related to a student’s major field, for which the student earns academic credit. The work can be full- or part-time, on- or off-campus, paid or unpaid."]
["*Learning center: Center offering assistance through tutors, workshops, computer programs, or audiovisual equipment in reading, writing, math, and skills such as taking notes, managing time, taking tests."]
[]
["*Legal services: Free or low cost legal advice for a range of issues (personal and other)."]
["Liberal arts/career combination: Program in which a student earns undergraduate degrees in two separate fields, one in a liberal arts major and the other in a professional or specialized major, whether on campus or through cross‑registration."]
["Living learning community: Residential programs that allow students to interact with students who share common interests. In addition to living together, students may also participate in shared courses, special events, and group service projects."]
["Master's degree: An award that requires the successful completion of a program of study of generally one or two full-time equivalent academic years of work beyond the bachelor's degree. Some of these degrees, such as those in Theology (M.Div., M.H.L./Rav) that were formerly classified as \"first-professional\", may require more than two full-time equivalent academic years of work. "]
["Minority affiliation (as admission factor): Special consideration in the admission process for members of designated racial/ethnic minority groups."]
["*Minority student center: Center with programs, activities, and/or services intended to enhance the college experience of students of color."]
[]
["Model United Nations: A simulation activity focusing on conflict resolution, globalization, and diplomacy. Assuming roles as foreign ambassadors and “delegates,” students conduct research, engage in debate, draft resolutions, and may participate in a national Model UN conference.  "]
[]
["Native Hawaiian or Other Pacific Islander: A person having origins in any of the original peoples of Hawaii, Guam, Samoa, or other Pacific Islands."]
["*New student orientation: Orientation addressing the academic, social, emotional, and intellectual issues involved in beginning college. May be a few hours or a few days in length; at some colleges, there is a fee."]
["Nonresident: A person who is not a citizen or national of the United States and who is in this country on a visa or temporary basis and does not have the right to remain indefinitely."]
["*On-campus day care: Licensed day care for students’ children (usually age 3 and up); usually for a fee."]
["Open admission: Admission policy under which virtually all secondary school graduates or students with GED equivalency diplomas are admitted without regard to academic record, test scores, or other qualifications."]
["Other expenses (costs): Include average costs for clothing, laundry, entertainment, medical (if not a required fee), and furnishings."]
["Out-of-state tuition: The tuition charged by institutions to those students who do not meet the institution’s or state’s residency requirements."]
["Outside a dual enrollment program:  High school students who simply enroll in credit courses through your institution and are treated as regularly enrolled college students."]
["Part-time student (undergraduate): A student enrolled for fewer than 12 credits per semester or quarter, or fewer than 24 clock hours a week each term."]
["Permanent Resident or other eligible non-citizen: A person who is not a citizen or national of the United States and who has been admitted as a legal immigrant for the purpose of obtaining permanent resident status (and who holds either a registration card [Form I-551 or I-151], a Temporary Resident Card [Form I-688], or an Arrival-Departure Record [Form I-94] with a notation that conveys legal immigrant status, such as Section 207 Refugee, Section 208 Asylee, Conditional Entrant Parolee or Cuban-Haitian)."]
["*Personal counseling: One-on-one or group counseling with trained professionals for students who want to explore personal, educational, or vocational issues."]
["Post-baccalaureate certificate: An award that requires completion of an organized program of study requiring 18 credit hours beyond the bachelor’s; designed for persons who have completed a baccalaureate degree but do not meet the requirements of academic degrees carrying the title of master."]
["Post-master’s certificate: An award that requires completion of an organized program of study of 24 credit hours beyond the master’s degree but does not meet the requirements of academic degrees at the doctoral level."]
["Postsecondary award, certificate, or diploma: Includes the following three IPEDS definitions for postsecondary awards, certificates, and diplomas of varying durations and credit/contact/clock hour requirements:"]
[]
["Less Than 1 Academic Year: Requires completion of an organized program of study at the postsecondary level (below the baccalaureate degree) in less than 1 academic year (2 semesters or 3 quarters) or in less than 900 clock hours by a student enrolled full-time."]
[]
["At Least 1 But Less Than 2 Academic Years: Requires completion of an organized program of study at the postsecondary level (below the baccalaureate degree) in at least 1 but less than 2 full-time equivalent academic years, or designed for completion in at least 30 but less than 60 credit hours, or in at least 900 but less than 1,800 clock hours."]
[]
["At Least 2 But Less Than 4 Academic Years: Requires completion of an organized program of study at the postsecondary level (below the baccalaureate degree) in at least 2 but less than 4 full-time equivalent academic years, or designed for completion in at least 60 but less than 120 credit hours, or in at least 1,800 but less than 3,600 clock hours."]
[]
["Private institution: An educational institution controlled by a private individual(s) or by a nongovernmental agency, usually supported primarily by other than public funds, and operated by other than publicly elected or appointed officials."]
["Private for-profit institution: A private institution in which the individual(s) or agency in control receives compensation, other than wages, rent, or other expenses for the assumption of risk."]
["Private nonprofit institution: A private institution in which the individual(s) or agency in control receives no compensation, other than wages, rent, or other expenses for the assumption of risk. These include both independent nonprofit schools and those affiliated with a religious organization."]
["Proprietary institution: See Private for-profit institution."]
["Public institution: An educational institution whose programs and activities are operated by publicly elected or appointed school officials, and which is supported primarily by public funds."]
["Quarter calendar system: A calendar system in which the academic year consists of three sessions called quarters of about 12 weeks each. The range may be from 10 to 15 weeks. There may be an additional quarter in the summer."]
["Race/ethnicity: Category used to describe groups to which individuals belong, identify with, or belong in the eyes of the community. The categories do not denote scientific definitions of anthropological origins. A person may be counted in only one group."]
["Race/ethnicity unknown: Category used to classify students or employees whose race/ethnicity is not known and whom institutions are unable to place in one of the specified racial/ethnic categories."]
["Recognized Postsecondary Credential: Includes both Title IV eligible degrees, certificates, and other recognized postsecondary credentials. Any credential that is received after completion of a program that is eligible for Title IV federal student aid. Credentials that are awarded to recognize an individual’s attainment of measurable technical or industry/occupational skills necessary to obtain employment or advance within an industry occupation. (Generally based on standards developed or endorsed by employers or industry associations)."]
["Religious affiliation/commitment (as admission factor): Special consideration given in the admission process for affiliation with a certain church or faith/religion, commitment to a religious vocation, or observance of certain religious tenets/lifestyle. "]
["*Religious counseling: One-on-one or group counseling with trained professionals for students who want to explore religious problems or issues."]
["Required fees: Fixed sum charged to students for items not covered by tuition and required of such a large proportion of all students that the student who does NOT pay is the exception. Do not include application fees or optional fees such as lab fees or parking fees. "]
["Secondary school record (as admission factor): Information maintained by the secondary school that may include such things as the student’s high school transcript, class rank, GPA, and teacher and counselor recommendations."]
["Semester calendar system: A calendar system that consists of two semesters during the academic year with about 16 weeks for each semester of instruction. There may be an additional summer session."]
["Student-designed major: A program of study based on individual interests, designed with the assistance of an adviser."]
["Study abroad: Any arrangement by which a student completes part of the college program studying in another country. Can be at a campus abroad or through a cooperative agreement with some other U.S. college or an institution of another country. "]
["*Summer session: A summer session is shorter than a regular semester and not considered part of the academic year. It is not the third term of an institution operating on a trimester system or the fourth term of an institution operating on a quarter calendar system. The institution may have 2 or more sessions occurring in the summer months. Some schools, such as vocational and beauty schools, have year-round classes with no separate summer session."]
["Talent/ability (as admission factor): Special consideration given to students with demonstrated talent/abilities in areas of interest to the institution (e.g., sports, the arts, languages, etc.)."]
["Teacher certification program: Program designed to prepare students to meet the requirements for certification as teachers in elementary, middle/junior high, and secondary schools."]
["Transfer applicant: An individual who has fulfilled the institution’s requirements to be considered for admission (including payment or waiving of the application fee, if any) and who has previously attended another college or university and earned college-level credit. "]
[]
["Transfer student: A student entering the institution for the first time but known to have previously attended a postsecondary institution at the same level (e.g., undergraduate). The student may transfer with or without credit."]
["Transportation (costs): Assume two round trips to student’s hometown per year for students in institutional housing or daily travel to and from your institution for commuter students."]
["Trimester calendar system: An academic year consisting of 3 terms of about 15 weeks each."]
["Tuition: Amount of money charged to students for instructional services. Tuition may be charged per term, per course, or per credit. "]
[]
["*Tutoring: May range from one-on-one tutoring in specific subjects to tutoring in an area such as math, reading, or writing. Most tutors are college students; at some colleges, they are specially trained and certified."]
[]
["Unit: a standard of measurement representing hours of academic instruction (e.g., semester credit, quarter credit, clock hour)."]
["Undergraduate: A student enrolled in a four- or five-year bachelor’s degree program, an associate degree program, or a vocational or technical program below the baccalaureate."]
["Unduplicated Count of High School Students Enrolled for Credit: Include all high school students enrolled in college courses for credit within or outside of a dual enrollment program."]
["Undergraduate Research: Opportunities offered to undergraduate students to make original contributions in an academic discipline via the exploration of a specific research topic. Research opportunities may or may not be associated with a specific course or earn credit."]
["*Veteran’s counseling: Helps veterans and their dependents obtain benefits for their selected program and provides certifications to the Veteran’s Administration. May also provide personal counseling on the transition from the military to a civilian life."]
["*Visually impaired: Any person whose sight loss is not correctable and is sufficiently severe as to adversely affect educational performance."]
["Volunteer work (as admission factor): Special consideration given to students for activity done on a volunteer basis (e.g., tutoring, hospital care, working with the elderly or disabled) as a service to the community or the public in general."]
["Wait list: List of students who meet the admission requirements but will only be offered a place in the class if space becomes available. "]
["Weekend college: A program that allows students to take a complete course of study and attend classes only on weekends. "]
["White: A person having origins in any of the original peoples of Europe, the Middle East, or North Africa."]
["Within a dual enrollment program: Program within an organized system with special guidelines that allows high school students to take college-level courses. The guidelines might have to do with entrance or eligibility requirements, funding, limits on course taking, etc."]
["*Women’s center: Center with programs, academic activities, and/or services intended to promote an understanding of the evolving roles of women."]
["Work experience (as admission factor): Special consideration given to students who have been employed prior to application, whether for relevance to major, demonstration of employment-related skills, or as explanation of student’s academic and extracurricular record."]
[]
[]
["Financial Aid Definitions"]
[]
["External scholarships and grants: Scholarships and grants received from outside (private) sources that students bring with them (e.g., Kiwanis, National Merit scholarships). The institution may process paperwork to receive the dollars, but it has no role in determining the recipient or the dollar amount awarded."]
[]
["Financial aid applicant: Any applicant who submits any one of the institutionally required financial aid applications/forms, such as the FAFSA. "]
[]
["Indebtedness: Aggregate dollar amount borrowed through any loan program (federal, state, subsidized, unsubsidized, private, etc.; excluding parent loans) while the student was enrolled at an institution. Student loans co-signed by a parent are assumed to be the responsibility of the student and should be included."]
[]
["Institutional scholarships and grants: Endowed scholarships, annual gifts and tuition funded grants for which the institution determines the recipient."]
[]
["Financial need: As determined by your institution using the federal methodology and/or your institution's own standards. "]
[]
["Need-based aid: College-funded or college-administered award from institutional, state, federal, or other sources for which a student must have financial need to qualify. This includes both institutional and non-institutional student aid (grants, jobs, and loans)."]
[]
["Need-based scholarship or grant aid: Scholarships and grants from institutional, state, federal, or other sources for which a student must have financial need to qualify."]
[]
["Need-based self-help aid: Loans and jobs from institutional, state, federal, or other sources for which a student must demonstrate financial need to qualify."]
[]
["Non-need-based scholarship or grant aid: Scholarships and grants, gifts, or merit-based aid from institutional, state, federal, or other sources (including unrestricted funds or gifts and endowment income) awarded solely on the basis of academic achievement, merit, or any other non-need-based reason. When reporting questions H1 and H2, non-need-based aid that is used to meet need should be counted as need-based aid. "]
[]
["Note: Suggested order of precedence for counting non-need money as need-based:"]
[]
[]
["1.        Non-need institutional grants"]
["2.        Non-need tuition waivers"]
["3.        Non-need athletic awards"]
["4.        Non-need federal grants"]
["5.        Non-need state grants"]
["6.        Non-need outside grants"]
["7.        Non-need student loans"]
["8.        Non-need parent loans"]
["9.        Non-need work"]
[]
[]
["Non-need-based self-help aid: Loans and jobs from institutional, state, or other sources for which a student need not demonstrate financial need to qualify."]
[]
["Work study and employment: Federal and state work study aid, and any employment packaged by your institution in financial aid awards."]